Workbook

Sheet hist. data
A1: minimum | B1: =MIN(B35:OFFSET(B35,(COUNTA(B35:B7001)-1),0)) -> 2.22 | C1: =MIN(C36:OFFSET(C36,(COUNTA(C36:C7001)-1),0)) -> -1.57 | D1: =MIN(D36:OFFSET(D36,(COUNTA(D36:D7001)-1),0)) -> 0 | E1: =MIN(E36:OFFSET(E36,(COUNTA(E36:E7001)-1),0)) -> 1.385041551e-05 | F1: =MIN(F36:OFFSET(F36,(COUNTA(F36:F7001)-1),0)) -> -0.2947326304 | G1: =MIN(G36:OFFSET(G36,(COUNTA(G36:G7001)-1),0)) -> 0 | H1: =MIN(H36:OFFSET(H36,(COUNTA(H36:H7001)-1),0)) -> 4.504204136e-06 | I1: =MIN(I35:OFFSET(I35,(COUNTA(I35:I7001)-1),0)) -> -3.80766299
A2: 10-percentile | B2: =PERCENTILE(B35:OFFSET(B35,(COUNTA(B35:B7001)-1),0),0.1) -> 3.302 | C2: =PERCENTILE(C36:OFFSET(C36,(COUNTA(C36:C7001)-1),0),0.1) -> -0.23 | D2: =PERCENTILE(D36:OFFSET(D36,(COUNTA(D36:D7001)-1),0),0.1) -> 0.01 | E2: =PERCENTILE(E36:OFFSET(E3,(COUNTA(E36:E7001)-1),0),0.1) -> 0.01001385042 | F2: =PERCENTILE(F36:OFFSET(F3,(COUNTA(F36:F7001)-1),0),0.1) -> -0.03716255759 | G2: =PERCENTILE(G36:OFFSET(G3,(COUNTA(G36:G7001)-1),0),0.1) -> 0.002558211105 | H2: =PERCENTILE(H36:OFFSET(H3,(COUNTA(H36:H7001)-1),0),0.1) -> 0.002555508583 | I2: =PERCENTILE(I35:OFFSET(I35,(COUNTA(I35:I7001)-1),0),0.1) -> -3.410642573
A3: median | B3: =MEDIAN(B35:OFFSET(B35,(COUNTA(B35:B7001)-1),0)) -> 5.99 | C3: =MEDIAN(C36:OFFSET(C36,(COUNTA(C36:C7001)-1),0)) -> 0 | D3: =MEDIAN(D36:OFFSET(D36,(COUNTA(D36:D7001)-1),0)) -> 0.11 | E3: =MEDIAN(E36:OFFSET(E36,(COUNTA(E36:E7001)-1),0)) -> 0.1100138504 | F3: =MEDIAN(F36:OFFSET(F36,(COUNTA(F36:F7001)-1),0)) -> 0 | G3: =MEDIAN(G36:OFFSET(G36,(COUNTA(G36:G7001)-1),0)) -> 0.01978305821 | H3: =MEDIAN(H36:OFFSET(H36,(COUNTA(H36:H7001)-1),0)) -> 0.019778554 | I3: =MEDIAN(I35:OFFSET(I35,(COUNTA(I35:I7001)-1),0)) -> -2.815078774
A4: 90-percentile | B4: =PERCENTILE(B35:OFFSET(B35,(COUNTA(B35:B7001)-1),0),0.9) -> 9.97 | C4: =PERCENTILE(C36:OFFSET(C36,(COUNTA(C36:C7001)-1),0),0.9) -> 0.27 | D4: =PERCENTILE(D36:OFFSET(D36,(COUNTA(D36:D7001)-1),0),0.9) -> 0.36 | E4: =PERCENTILE(E36:OFFSET(E36,(COUNTA(E36:E7001)-1),0),0.9) -> 0.3600138504 | F4: =PERCENTILE(F36:OFFSET(F36,(COUNTA(F36:F7001)-1),0),0.9) -> 0.03827070681 | G4: =PERCENTILE(G36:OFFSET(G36,(COUNTA(G36:G7001)-1),0),0.9) -> 0.05410344461 | H4: =PERCENTILE(H36:OFFSET(H36,(COUNTA(H36:H7001)-1),0),0.9) -> 0.05409894041 | I4: =PERCENTILE(I35:OFFSET(I35,(COUNTA(I35:I7001)-1),0),0.9) -> -2.305597683
A5: maximum | B5: =MAX(B35:OFFSET(B35,(COUNTA(B35:B7001)-1),0)) -> 15.13 | C5: =MAX(C36:OFFSET(C36,(COUNTA(C36:C7001)-1),0)) -> 1.56 | D5: =MAX(D36:OFFSET(D36,(COUNTA(D36:D7001)-1),0)) -> 1.57 | E5: =MAX(E36:OFFSET(E36,(COUNTA(E36:E7001)-1),0)) -> 1.56998615 | F5: =MAX(F36:OFFSET(F36,(COUNTA(F36:F7001)-1),0)) -> 0.136695396 | G5: =MAX(G36:OFFSET(G36,(COUNTA(G36:G7001)-1),0)) -> 0.2947326304 | H5: =MAX(H36:OFFSET(H36,(COUNTA(H36:H7001)-1),0)) -> 0.2947281262 | I5: =MAX(I35:OFFSET(I35,(COUNTA(I35:I7001)-1),0)) -> -1.888490658
A7: mean | B7: =AVERAGE(B35:B7001) -> 6.346307054 | C7: =AVERAGE(C36:C7001) -> -1.385041551e-05 | D7: 0.1658587258 | E7: 0.1658593204 | F7: -4.504204136e-06 | G7: 0.02572758971 | H7: 0.0257277831 | I7: =AVERAGE(I35:I7001) -> -2.841762372 | J7: =AVERAGE(J35:J7001) -> 7598.994729 | K7: =AVERAGE(K35:K7001) -> 176.4547086 | L7: =AVERAGE(L35:L7001) -> 0.03886880033 | M7: =AVERAGE(M36:M7001) -> 1.051657248e-06
J8: =$J$7/$B$9^6 -> 21.49953535 | K8: =$K$7/$B$9^4 -> 3.529787321 | L8: =$L$7/$I$9^6 -> 7.901530494 | M8: =$M$7/$F$9^6 -> 477.9029137
A9: standard deviation | B9: =STDEVP(B35:OFFSET(B35,(COUNTA(B35:B7001)-1),0)) -> 2.659017394 | C9: =STDEVP(C36:OFFSET(C36,(COUNTA(C36:C7001)-1),0)) -> 0.2482729818 | D9: =STDEVP(D36:OFFSET(D36,(COUNTA(D36:D7001)-1),0)) -> 0.1847440304 | E9: =STDEVP(E36:OFFSET(E36,(COUNTA(E36:E7001)-1),0)) -> 0.1847434607 | F9: =STDEVP(F36:OFFSET(F36,(COUNTA(F36:F7001)-1),0)) -> 0.03606526189 | G9: =STDEVP(G36:OFFSET(G36,(COUNTA(G36:G7001)-1),0)) -> 0.02527437958 | H9: =STDEVP(H36:OFFSET(H36,(COUNTA(H36:H7001)-1),0)) -> 0.02527415334 | I9: =STDEVP(I35:OFFSET(I35,(COUNTA(I35:I7001)-1),0)) -> 0.4123965145
A11: coeff of var | B11: =B9/B7 -> 0.4189865651 | D11: =D9/D7 -> 1.113863799 | E11: =E9/E7 -> 1.113856371 | G11: =G9/G7 -> 0.9823842754 | H11: =H9/H7 -> 0.9823680974 | I11: =I9/I7 -> -0.1451199856
A12: skewness | B12: =SKEW(B35:OFFSET(B35,(COUNTA(B35:B7001)-1),0))*((STDEV(B35:OFFSET(B35,(COUNTA(B35:B7001)-1),0))/STDEVP(B35:OFFSET(B35,(COUNTA(B35:B7001)-1),0)))^3)*(COUNTA(B35:B7001)-1)*(COUNTA(B35:B7001)-2)/COUNTA(B35:B7001)^2 -> 0.9122492778 | C12: =SKEW(C36:OFFSET(C36,(COUNTA(C36:C7001)-1),0))*((STDEV(C36:OFFSET(C36,(COUNTA(C36:C7001)-1),0))/STDEVP(C36:OFFSET(C36,(COUNTA(C36:C7001)-1),0)))^3)*(COUNTA(C36:C7001)-1)*(COUNTA(C36:C7001)-2)/COUNTA(C36:C7001)^2 -> -0.3475960523 | D12: =SKEW(D36:OFFSET(D36,(COUNTA(D36:D7001)-1),0))*((STDEV(D36:OFFSET(D36,(COUNTA(D36:D7001)-1),0))/STDEVP(D36:OFFSET(D36,(COUNTA(D36:D7001)-1),0)))^3)*(COUNTA(D36:D7001)-1)*(COUNTA(D36:D7001)-2)/COUNTA(D36:D7001)^2 -> 2.926561241 | E12: =SKEW(E36:OFFSET(E36,(COUNTA(E36:E7001)-1),0))*((STDEV(E36:OFFSET(E36,(COUNTA(E36:E7001)-1),0))/STDEVP(E36:OFFSET(E36,(COUNTA(E36:E7001)-1),0)))^3)*(COUNTA(E36:E7001)-1)*(COUNTA(E36:E7001)-2)/COUNTA(E36:E7001)^2 -> 2.926581967 | F12: =SKEW(F36:OFFSET(F36,(COUNTA(F36:F7001)-1),0))*((STDEV(F36:OFFSET(F36,(COUNTA(F36:F7001)-1),0))/STDEVP(F36:OFFSET(F36,(COUNTA(F36:F7001)-1),0)))^3)*(COUNTA(F36:F7001)-1)*(COUNTA(F36:F7001)-2)/COUNTA(F36:F7001)^2 -> -0.8551419459 | G12: =SKEW(G36:OFFSET(G36,(COUNTA(G36:G7001)-1),0))*((STDEV(G36:OFFSET(G36,(COUNTA(G36:G7001)-1),0))/STDEVP(G36:OFFSET(G36,(COUNTA(G36:G7001)-1),0)))^3)*(COUNTA(G36:G7001)-1)*(COUNTA(G36:G7001)-2)/COUNTA(G36:G7001)^2 -> 3.224355567 | H12: =SKEW(H36:OFFSET(H36,(COUNTA(H36:H7001)-1),0))*((STDEV(H36:OFFSET(H36,(COUNTA(H36:H7001)-1),0))/STDEVP(H36:OFFSET(H36,(COUNTA(H36:H7001)-1),0)))^3)*(COUNTA(H36:H7001)-1)*(COUNTA(H36:H7001)-2)/COUNTA(H36:H7001)^2 -> 3.224335665 | I12: =SKEW(I35:OFFSET(I35,(COUNTA(I35:I7001)-1),0))*((STDEV(I35:OFFSET(I35,(COUNTA(I35:I7001)-1),0))/STDEVP(I35:OFFSET(I35,(COUNTA(I35:I7001)-1),0)))^3)*(COUNTA(I35:I7001)-1)*(COUNTA(I35:I7001)-2)/COUNTA(I35:I7001)^2 -> 0.009828735332
A13: kurtosis | B13: =((KURT(B35:OFFSET(B35,(COUNTA(B35:B7001)-1),0))+3*(COUNTA(B35:B7001)-1)^2/((COUNTA(B35:B7001)-2)*(COUNTA(B35:B7001)-3)))*(STDEV(B35:OFFSET(B35,(COUNTA(B35:B7001)-1),0))/STDEVP(B35:OFFSET(B35,(COUNTA(B35:B7001)-1),0)))^4)*(COUNTA(B35:B7001)-1)*(COUNTA(B35:B7001)-2)*(COUNTA(B35:B7001)-3)/((COUNTA(B35:B7001)+1)*COUNTA(B35:B7001)^2) -> 3.529787321 | C13: =((KURT(C36:OFFSET(C36,(COUNTA(C36:C7001)-1),0))+3*(COUNTA(C36:C7001)-1)^2/((COUNTA(C36:C7001)-2)*(COUNTA(C36:C7001)-3)))*(STDEV(C36:OFFSET(C36,(COUNTA(C36:C7001)-1),0))/STDEVP(C36:OFFSET(C36,(COUNTA(C36:C7001)-1),0)))^4)*(COUNTA(C36:C7001)-1)*(COUNTA(C36:C7001)-2)*(COUNTA(C36:C7001)-3)/((COUNTA(C36:C7001)+1)*COUNTA(C36:C7001)^2) -> 9.85513584 | D13: =((KURT(D36:OFFSET(D36,(COUNTA(D36:D7001)-1),0))+3*(COUNTA(D36:D7001)-1)^2/((COUNTA(D36:D7001)-2)*(COUNTA(D36:D7001)-3)))*(STDEV(D36:OFFSET(D36,(COUNTA(D36:D7001)-1),0))/STDEVP(D36:OFFSET(D36,(COUNTA(D36:D7001)-1),0)))^4)*(COUNTA(D36:D7001)-1)*(COUNTA(D36:D7001)-2)*(COUNTA(D36:D7001)-3)/((COUNTA(D36:D7001)+1)*COUNTA(D36:D7001)^2) -> 16.14893934 | E13: =((KURT(E36:OFFSET(E36,(COUNTA(E36:E7001)-1),0))+3*(COUNTA(E36:E7001)-1)^2/((COUNTA(E36:E7001)-2)*(COUNTA(E36:E7001)-3)))*(STDEV(E36:OFFSET(E36,(COUNTA(E36:E7001)-1),0))/STDEVP(E36:OFFSET(E36,(COUNTA(E36:E7001)-1),0)))^4)*(COUNTA(E36:E7001)-1)*(COUNTA(E36:E7001)-2)*(COUNTA(E36:E7001)-3)/((COUNTA(E36:E7001)+1)*COUNTA(E36:E7001)^2) -> 16.14911422 | F13: =((KURT(F36:OFFSET(F36,(COUNTA(F36:F7001)-1),0))+3*(COUNTA(F36:F7001)-1)^2/((COUNTA(F36:F7001)-2)*(COUNTA(F36:F7001)-3)))*(STDEV(F36:OFFSET(F36,(COUNTA(F36:F7001)-1),0))/STDEVP(F36:OFFSET(F36,(COUNTA(F36:F7001)-1),0)))^4)*(COUNTA(F36:F7001)-1)*(COUNTA(F36:F7001)-2)*(COUNTA(F36:F7001)-3)/((COUNTA(F36:F7001)+1)*COUNTA(F36:F7001)^2) -> 10.9259783 | G13: =((KURT(G36:OFFSET(G36,(COUNTA(G36:G7001)-1),0))+3*(COUNTA(G36:G7001)-1)^2/((COUNTA(G36:G7001)-2)*(COUNTA(G36:G7001)-3)))*(STDEV(G36:OFFSET(G36,(COUNTA(G36:G7001)-1),0))/STDEVP(G36:OFFSET(G36,(COUNTA(G36:G7001)-1),0)))^4)*(COUNTA(G36:G7001)-1)*(COUNTA(G36:G7001)-2)*(COUNTA(G36:G7001)-3)/((COUNTA(G36:G7001)+1)*COUNTA(G36:G7001)^2) -> 24.88192315 | H13: =((KURT(H36:OFFSET(H36,(COUNTA(H36:H7001)-1),0))+3*(COUNTA(H36:H7001)-1)^2/((COUNTA(H36:H7001)-2)*(COUNTA(H36:H7001)-3)))*(STDEV(H36:OFFSET(H36,(COUNTA(H36:H7001)-1),0))/STDEVP(H36:OFFSET(H36,(COUNTA(H36:H7001)-1),0)))^4)*(COUNTA(H36:H7001)-1)*(COUNTA(H36:H7001)-2)*(COUNTA(H36:H7001)-3)/((COUNTA(H36:H7001)+1)*COUNTA(H36:H7001)^2) -> 24.88126401 | I13: =((KURT(I35:OFFSET(I35,(COUNTA(I35:I7001)-1),0))+3*(COUNTA(I35:I7001)-1)^2/((COUNTA(I35:I7001)-2)*(COUNTA(I35:I7001)-3)))*(STDEV(I35:OFFSET(I35,(COUNTA(I35:I7001)-1),0))/STDEVP(I35:OFFSET(I35,(COUNTA(I35:I7001)-1),0)))^4)*(COUNTA(I35:I7001)-1)*(COUNTA(I35:I7001)-2)*(COUNTA(I35:I7001)-3)/((COUNTA(I35:I7001)+1)*COUNTA(I35:I7001)^2) -> 2.416347013
A14: 6th-osis | B14: =$J$7/$B$9^6 -> 21.49953535 | F14: =$M$7/$F$9^6 -> 477.9029137 | I14: =$L$7/$I$9^6 -> 7.901530494
I16: =I7+LN(100) -> 1.763407814
C17: MEAN /LOGDELTA/ - /MEAN LOGDELTA/ = | G17: =G7-ABS(F7) -> 0.02572308551 | I17: adjusted mean
I18: =I9/I16 -> 0.2338633815
I19: adjusted coeff of var
A20: Title: | B20: 20-Year Treasury Constant Maturity Rate | AH20: αβ= | AI20: 0.02027215094 | AJ20: β/(α-1)= | AK20: 37807847.65
A21: Series ID: | B21: GS10 | AH21: τ= | AI21: 2.026579041 | AJ21: τ= | AK21: 0.183615911
A22: Source: | B22: Board of Governors of the Federal Reserve System | AE22: mean | AF22: =AF30*AF31 -> 0.02768767132 | AG22: =AG31/(AG30-1) -> 0.1017661821 | AH22: α = | AI22: 0.4440699309 | AJ22: α = | AK22: 27.2363519 | AN22: These are all based on best mix of a stand-alone
A23: Release: | B23: H.15 Selected Interest Rates | AE23: std dev | AF23: =AF31*AF30^0.5 -> 0.02534956052 | AG23: =AG22/(AG30-2)^0.5 ->  | AH23: β = | AI23: 0.04565080751 | AJ23: β = | AK23: 1388139.197 | AM23: 0.9315512207 | AN23: best gen-gamma and best gen-inverse gamma
A24: Seasonal Adjustment: | B24: Not Applicable | R24: LOGNORMAL TO FIT VALUES | V24: VARIOUS DISTRIBUTIONS TO FIT NORMALIZED /LOGDELTA/ | AF24: from | AH24: rms error | AI24: 0.004366088416 | AJ24: rms error | AK24: 0.01007449716 | AL24: rms error | AM24: 0.003645601285
A25: Frequency: | B25: Monthly | AF25: data on
A26: Units: | B26: Percent | S26: from | T26: from | Z26: =(($X26-Y26)^2)/50 -> 0 | AD26: α = | AE26: =($AF$28/$AF$29)^2 -> 1.036218877 | AF26: normalized | AG26: =2+($AF$28/$AF$29)^2 -> 3.036218877 | AH26: this should pick up Weibull | AK26: and inv. Weibull
A27: Date Range: | B27: =A35 -> 1953-04-15 | C27: =OFFSET(A35,(COUNTA(A35:A7001)-1),0) -> 2013-06-14T21:00:00 | S27: LN(data) | T27: data | AD27: β = | AE27: =$AF$28/$AE$26 -> 0.02482852193 | AF27: abslogdelta | AG27: =$AF$28*($AG$26-1) -> 0.05238739762
A28: Last Updated: | B28: 2013-07-09 | R28: mean | S28: =EXP(S31+0.5*S32^2) -> 6.349926619 | T28: =B7 -> 6.346307054 | AB28: α= | AC28: 1 | AE28: mean | AF28: =$H7 -> 0.0257277831 | AH28: αβ= | AI28: =AI30*AI31 -> 0.006843577999 | AJ28: β/(α-1)= | AK28: =AK30*AK31 -> 7.230332408e+10 | AQ28: make AQ35 and AR35 green
A29: Notes: | B29: Averages of business days. For further information regarding treasury | R29: std dev | S29: =S28*(EXP(S32^2)-1)^0.5 -> 2.734075737 | T29: =B9 -> 2.659017394 | X29: µ = | Y29: 0 | Z29: µ = | AA29: 0 | AB29: µ = | AC29: 0 | AE29: std dev | AF29: =$H9 -> 0.02527415334 | AH29: τ= | AI29: 4.874300831 | AJ29: τ= | AK29: 0.1552262708 | AN29: These are based on the gen-gamma and | AO29: 0 | AQ29: 0 | AU29: picks up the total low extreme probability … see counts
B30: constant maturity data, please refer to | X30: σ = | Y30: =F9 -> 0.03606526189 | Z30: σ = | AA30: 0.02987023452 | AB30: c= | AC30: 54.51656976 | AE30: α = | AF30: 1.192976786 | AG30: 1.187185462 | AH30: α = | AI30: 0.1365037014 | AJ30: α = | AK30: 47.53615789 | AN30: gen-inverse gamma within the best mixture | AO30: 0 | AQ30: 0
B31: http://www.federalreserve.gov/releases/h15/current/h15.pdf | R31: µ = | S31: =I16 -> 1.763407814 | T31: =LN(T28)-0.5*T32^2 -> 1.767005126 | AE31: β = | AF31: 0.02320889362 | AG31: 0.01904914979 | AH31: β = | AI31: 0.05013474306 | AJ31: β = | AK31: 1521017417 | AM31: 0.5854531335 | AO31: 0 | AQ31: 0 | AS31: 0 | AY31: (for freqabs)
B32: http://federalreserve.gov/releases/h15/data.htm | Q32: HISTORICAL | R32: σ = | S32: =I9 -> 0.4123965145 | T32: =(LN((T29/T28)^2+1))^0.5 -> 0.4021640256 | X32: historical | Y32: mean | AA32: L2 | AC32: L2 | AE32: 0.006828836341 | AF32: L2 | AG32: L2 | AH32: 0.02514331698 | AI32: L2 | AK32: generalized | AM32: gen. gamma-inv.gamma | AS32: mean | AT32: L2 | AU32: L2 | AV32: L2 | AW32: L2 | AX32: L2 | AY32: L2
E33: NORMALIZED | H33: NORMALIZED | L33: SIXTH | M33: SIXTH MOMENT | O33: labels | Q33: DATA | S33: LOGNORMAL | V33: labels | X33: data | Y33: gaussian | Z33: rms error | AA33: gaussian | AB33: rms error | AC33: logistic | AD33: rms error | AE33: rms error | AF33: gamma | AG33: inv. gamma | AH33: rms error | AI33: gen. gamma | AJ33: rms error | AK33: inv. gamma | AL33: rms error | AM33: L2 mixture | AN33: rms error | AR33: HISTORICAL | AS33: GAUSSIAN | AT33: GAUSSIAN | AU33: digamma | AV33: dimixture | AW33: digengamma | AX33: logistic | AY33: gen-gamma
A34: DATE | B34: VALUE | C34: DELTA | D34: /DELTA/ | E34: /DELTA/2 | F34: LOGDELTA | G34: /LOGDELTA/ | H34: /LOGDELTA/3 | I34: LOG(VALUE/100) | J34: SIXTH MOMENT | K34: FOURTH MOMENT | L34: LOG MOMENT | M34: LOGDELTA4 | N34: bins | P34: count | U34: bins | W34: count | Z34: =SUM(Z35,Z37:Z86)^0.5 -> 0.007893245074 | AB34: =SUM(AB35,AB37:AB86)^0.5 -> 0.005023941931 | AD34: =SUM(AD35,AD37:AD86)^0.5 -> 0.004608852536 | AE34: =SUM(AE35,AE37:AE86)^0.5 -> 0.005604011082 | AH34: =SUM(AH35,AH37:AH86)^0.5 -> 0.0141170789 | AJ34: =SUM(AJ35,AJ37:AJ86)^0.5 -> 0.008503853993 | AL34: =SUM(AL35,AL37:AL86)^0.5 -> 0.01144625783 | AN34: =SUM(AN35,AN37:AN86)^0.5 -> 0.003645601285 | AO34: bins | AP34: labels | AQ34: counts | AR34: DATA
A35: 1953-04-15 | B35: 3.08 | I35: =LN(B35/100) -> -3.480240589 | J35: =($B35-$B$7)^6 -> 1214.344899 | K35: =($B35-$B$7)^4 -> 113.8224777 | L35: =($I35-$I$7)^6 -> 0.06774488518 | N35: 0 | P35: =FREQUENCY(B35:OFFSET(B35,(COUNTA(B35:B7001)-1),0),N35:N85) -> 0 | S35: =LOGNORMDIST(N36,S$31,S$32)-LOGNORMDIST(1E-97,S$31,S$32) -> 1.106904173e-14 | U35: 0 | W35: =FREQUENCY(H36:OFFSET(H36,(COUNTA(H36:H7001)-1),0),U35:U85) -> 0 | X35: =W36/COUNTA(H36:H7001) -> 0.08864265928 | Y35: =2*( NORMDIST($U36,Y$29,Y$30,TRUE)-NORMDIST($U35,Y$29,Y$30,TRUE)) -> 0.05526412359 | Z35: =(0.5*($X35-Y35)^2)/50.5 -> 1.103095688e-05 | AA35: =2*( NORMDIST($U36,AA$29,AA$30,TRUE)-NORMDIST($U35,AA$29,AA$30,TRUE)) -> 0.06670135277 | AB35: =(0.5*($X35-AA35)^2)/50.5 -> 4.766543875e-06 | AC35: =2*(1/(1+EXP(-AC$30*$U36))-1/(1+EXP(-AC$30*U35))) -> 0.06804042189 | AD35: =(0.5*($X35-AC35)^2)/50.5 -> 4.202496884e-06 | AE35: =(0.5*($X35-AF35)^2)/50.5 -> 7.991009659e-06 | AF35: =(GAMMADIST(U36,AF30,AF31,TRUE) ) -> 0.06023329506 | AG35: =(1-GAMMADIST(1/U36,AG30,1/AG31,TRUE)) -> 0.0007960832502 | AH35: =(0.5*($X35-AG35)^2)/50.5 -> 7.640614772e-05 | AI35: =(GAMMADIST($U36^$AI$29,$AI$30,$AI$31^$AI$29,TRUE) ) -> 0.1450567032 | AJ35: =(0.5*($X35-AI35)^2)/50.5 -> 3.151034008e-05 | AK35: =(1-GAMMADIST((1/U36)^AK$29,AK$30,(1/AK$31)^AK$29,TRUE)) -> 0.004490710278 | AL35: =(0.5*($X35-AK35)^2)/50.5 -> 7.011436159e-05 | AM35: =AM$31*AI35+(1-AM$31)*AK35 -> 0.08678551128 | AN35: =(0.5*($X35-AM35)^2)/50.5 -> 3.414850173e-08 | AO35: =$F$7-0.0025-0.19 -> -0.1925045042 | AP35: =$F$7-0.195 -> -0.1950045042 | AQ35: =FREQUENCY(F36:OFFSET(F36,COUNTA(F36:F7001)-1,0),AO35:AO112) -> 2 | AR35: =AQ35/COUNTA(F$36:F$7001) -> 0.002770083102 | AS35: =NORMDIST(AO35,F$7,F$9,TRUE) -> 4.71064617e-08 | AT35: =NORMDIST(AO35,F$7,AA$30,TRUE) -> 5.797476749e-11 | AU35: =0.5*(1-GAMMADIST(ABS(AO35-$F$7),AF$30,AF$31,TRUE)) -> 0.0002086898769 | AV35: =0.5*(1-AM$31*GAMMADIST(ABS(AO35-$F$7)^AI$29,AI$30,AI$31^AI$29,TRUE)-(1-AM$31)*( 1-GAMMADIST(ABS(1/(AO35-$F$7))^AK$29,AK$30,1/AK$31^AK$29,TRUE))) -> 0.003996027348 | AW35: =0.5*(1-GAMMADIST(ABS(AO35-$F$7)^AI$21,AI$22,AI$23^AI$21,TRUE)) -> 4.563386891e-10 | AX35: =1/(1+EXP(-$AC$30*(AO35-$F$7))) -> 2.768922059e-05 | AY35: =(GAMMADIST($U36^$AI$21,$AI$22,$AI$23^$AI$21,TRUE) ) -> 0.08261132254
A36: =A35+30.4375 -> 1953-05-15T10:30:00 | B36: 3.18 | C36: =B36-B35 -> 0.1 | D36: =ABS(C36) -> 0.1 | E36: =ABS(C36-C$7) -> 0.1000138504 | F36: =LN(B36/B35) -> 0.03195159981 | G36: =ABS(F36) -> 0.03195159981 | H36: =ABS(F36-F$7) -> 0.03195610401 | I36: =LN(B36/100) -> -3.448288989 | J36: 1007.669633 | K36: 100.5106575 | L36: 0.04978507755 | M36: =(F36-F$7)^6 -> 1.064934646e-09 | N36: 0.25 | O36: =0 -> 0 | P36: 0 | Q36: =2*P36/COUNTA(B35:B7001) -> 0 | S36: =2*S35 -> 2.213808347e-14 | U36: 0.0025 | V36: =0 -> 0 | W36: 64 | X36: =2*X35 -> 0.1772853186 | Y36: =2*Y35 -> 0.1105282472 | AA36: =2*AA35 -> 0.1334027055 | AC36: =2*AC35 -> 0.1360808438 | AF36: =2*AF35 -> 0.1204665901 | AG36: =2*AG35 -> 0.0015921665 | AI36: =2*$AI35 -> 0.2901134063 | AK36: =2*AK35 -> 0.008981420555 | AM36: =2*AM35 -> 0.1735710226 | AO36: =AO35+0.005 -> -0.1875045042 | AP36: =AP35+0.005 -> -0.1900045042 | AQ36: 0 | AR36: 0 | AS36: =NORMDIST(AO36,F$7,F$9,TRUE)-NORMDIST(AO35,F$7,F$9,TRUE) -> 5.312457101e-08 | AT36: =NORMDIST(AO36,F$7,AA$30,TRUE)-NORMDIST(AO35,F$7,AA$30,TRUE) -> 1.144407902e-10 | AU36: =IF(AO36 <$F$7,0.5*(1-GAMMADIST(ABS(AO36-$F$7),AF$30,AF$31,TRUE))-0.5*(1-GAMMADIST(ABS(AO35-$F$7),AF$30,AF$31,TRUE)),0.5*(GAMMADIST(ABS(AO36-$F$7),AF$30,AF$31,TRUE))-0.5*( GAMMADIST(ABS(AO35-$F$7),AF$30,AF$31,TRUE))) -> 4.899070324e-05 | AV36: =AM$31*(IF(AO36 <$F$7,0.5*(1-GAMMADIST(ABS(AO36-$F$7)^AI$29,AI$30,AI$31^AI$29,TRUE))-0.5*(1-GAMMADIST(ABS(AO35-$F$7)^AI$29,AI$30,AI$31^AI$29,TRUE)),0.5*(GAMMADIST(ABS(AO36-$F$7)^AI$29,AI$30,AI$31^AI$29,TRUE))-0.5*( GAMMADIST(ABS(AO35-$F$7)^AI$29,AI$30,AI$31^AI$29,TRUE))))+(1-AM$31)*(IF(AO36 <$F$7,0.5*(GAMMADIST(1/ABS(AO36-$F$7)^AK$29,AK$30,1/AK$31^AK$29,TRUE))-0.5*(GAMMADIST(1/ABS(AO35-$F$7)^AK$29,AK$30,1/AK$31^AK$29,TRUE)),0.5*((1-GAMMADIST(1/ABS(AO36-$F$7)^AK$29,AK$30,1/AK$31^AK$29,TRUE)))-0.5*( (1-GAMMADIST(1/ABS(AO35-$F$7)^AK$29,AK$30,1/AK$31^AK$29,TRUE))))) -> 0.0002532517992 | AW36: =IF(AO36 <$F$7,0.5*(1-GAMMADIST(ABS(AO36-$F$7)^AI$21,AI$22,AI$23^AI$21,TRUE))-0.5*(1-GAMMADIST(ABS(AO35-$F$7)^AI$21,AI$22,AI$23^AI$21,TRUE)),0.5*(GAMMADIST(ABS(AO36-$F$7)^AI$21,AI$22,AI$23^AI$21,TRUE))-0.5*( GAMMADIST(ABS(AO35-$F$7)^AI$21,AI$22,AI$23^AI$21,TRUE))) -> 7.689669457e-10 | AX36: =1/(1+EXP(-$AC$30*(AO36-$F$7)))-1/(1+EXP(-$AC$30*(AO35-$F$7))) -> 8.67616444e-06 | AY36: =2*$AY35 -> 0.1652226451
A37: =A36+30.4375 -> 1953-06-14T21:00:00 | B37: 3.21 | C37: =B37-B36 -> 0.03 | D37: =ABS(C37) -> 0.03 | E37: =ABS(C37-C$7) -> 0.03001385042 | F37: =LN(B37/B36) -> 0.00938974035 | G37: =ABS(F37) -> 0.00938974035 | H37: =ABS(F37-F$7) -> 0.009394244554 | I37: -3.438899249 | J37: 951.7249375 | K37: 96.75519651 | L37: 0.04533601624 | M37: =(F37-F$7)^6 -> 6.873392903e-13 | N37: =N36+0.5 -> 0.75 | O37: =O36+0.5 -> 0.5 | P37: 0 | Q37: =P37/COUNTA(B$35:B$7001) -> 0 | S37: =LOGNORMDIST(N37,S$31,S$32)-LOGNORMDIST(N36,S$31,S$32) -> 3.286265044e-07 | U37: =U36+0.005 -> 0.0075 | V37: =V36+0.005 -> 0.005 | W37: 90 | X37: =W37/COUNTA(H$36:H$7001) -> 0.1246537396 | Y37: =2*( NORMDIST($U37,Y$29,Y$30,TRUE)-NORMDIST($U36,Y$29,Y$30,TRUE)) -> 0.1094728217 | Z37: =(($X37-Y37)^2)/50.5 -> 4.56356968e-06 | AA37: =2*( NORMDIST($U37,AA$29,AA$30,TRUE)-NORMDIST($U36,AA$29,AA$30,TRUE)) -> 0.131551087 | AB37: =(($X37-AA37)^2)/50.5 -> 9.420475358e-07 | AC37: =2*(1/(1+EXP(-AC$30*U37))-1/(1+EXP(-AC$30*U36))) -> 0.1335954181 | AD37: =(($X37-AC37)^2)/50.5 -> 1.58323988e-06 | AE37: =(($X37-AF37)^2)/50.5 -> 4.165719665e-06 | AF37: =(GAMMADIST(U37,AF$30,AF$31,TRUE)-GAMMADIST(U36,AF$30,AF$31,TRUE)) -> 0.1391578371 | AG37: =(1-GAMMADIST(1/U37,AG$30,1/AG$31,TRUE))-(1-GAMMADIST(1/U36,AG$30,1/AG$31,TRUE)) -> 0.1070891037 | AH37: =(($X37-AG37)^2)/50.5 -> 6.109236331e-06 | AI37: =(GAMMADIST($U37^$AI$29,$AI$30,$AI$31^$AI$29,TRUE)-GAMMADIST($U36^$AI$29,$AI$30,$AI$31^$AI$29,TRUE)) -> 0.1562371783 | AJ37: =(($X37-AI37)^2)/50.5 -> 1.975274448e-05 | AK37: =(1-GAMMADIST((1/U37)^AK$29,AK$30,(1/AK$31)^AK$29,TRUE))-(1-GAMMADIST((1/U36)^AK$29,AK$30,(1/AK$31)^AK$29,TRUE)) -> 0.08787599153 | AL37: =(($X37-AK37)^2)/50.5 -> 2.678421295e-05 | AM37: =AM$31*AI37+(1-AM$31)*AK37 -> 0.1278982625 | AN37: =(($X37-AM37)^2)/50.5 -> 2.084540359e-07 | AO37: =AO36+0.005 -> -0.1825045042 | AP37: =AP36+0.005 -> -0.1850045042 | AQ37: 0 | AR37: 0 | AS37: =NORMDIST(AO37,F$7,F$9,TRUE)-NORMDIST(AO36,F$7,F$9,TRUE) -> 1.090994354e-07 | AT37: =NORMDIST(AO37,F$7,AA$30,TRUE)-NORMDIST(AO36,F$7,AA$30,TRUE) -> 3.264860663e-10 | AU37: =IF(AO37 <$F$7,0.5*(1-GAMMADIST(ABS(AO37-$F$7),AF$30,AF$31,TRUE))-0.5*(1-GAMMADIST(ABS(AO36-$F$7),AF$30,AF$31,TRUE)),0.5*(GAMMADIST(ABS(AO37-$F$7),AF$30,AF$31,TRUE))-0.5*( GAMMADIST(ABS(AO36-$F$7),AF$30,AF$31,TRUE))) -> 6.045601912e-05 | AV37: =AM$31*(IF(AO37 <$F$7,0.5*(1-GAMMADIST(ABS(AO37-$F$7)^AI$29,AI$30,AI$31^AI$29,TRUE))-0.5*(1-GAMMADIST(ABS(AO36-$F$7)^AI$29,AI$30,AI$31^AI$29,TRUE)),0.5*(GAMMADIST(ABS(AO37-$F$7)^AI$29,AI$30,AI$31^AI$29,TRUE))-0.5*( GAMMADIST(ABS(AO36-$F$7)^AI$29,AI$30,AI$31^AI$29,TRUE))))+(1-AM$31)*(IF(AO37 <$F$7,0.5*(GAMMADIST(1/ABS(AO37-$F$7)^AK$29,AK$30,1/AK$31^AK$29,TRUE))-0.5*(GAMMADIST(1/ABS(AO36-$F$7)^AK$29,AK$30,1/AK$31^AK$29,TRUE)),0.5*((1-GAMMADIST(1/ABS(AO37-$F$7)^AK$29,AK$30,1/AK$31^AK$29,TRUE)))-0.5*( (1-GAMMADIST(1/ABS(AO36-$F$7)^AK$29,AK$30,1/AK$31^AK$29,TRUE))))) -> 0.0002744905386 | AW37: =IF(AO37 <$F$7,0.5*(1-GAMMADIST(ABS(AO37-$F$7)^AI$21,AI$22,AI$23^AI$21,TRUE))-0.5*(1-GAMMADIST(ABS(AO36-$F$7)^AI$21,AI$22,AI$23^AI$21,TRUE)),0.5*(GAMMADIST(ABS(AO37-$F$7)^AI$21,AI$22,AI$23^AI$21,TRUE))-0.5*( GAMMADIST(ABS(AO36-$F$7)^AI$21,AI$22,AI$23^AI$21,TRUE))) -> 1.982789544e-09 | AX37: =1/(1+EXP(-$AC$30*(AO37-$F$7)))-1/(1+EXP(-$AC$30*(AO36-$F$7))) -> 1.13946315e-05 | AY37: =(GAMMADIST($U37^$AI$21,$AI$22,$AI$23^$AI$21,TRUE)-GAMMADIST($U36^$AI$21,$AI$22,$AI$23^$AI$21,TRUE)) -> 0.1378684555
A38: 1953-07-15T07:30:00 | B38: 3.12 | C38: -0.09 | D38: 0.09 | E38: 0.08998614958 | F38: =LN(B38/B37) -> -0.02843793532 | G38: 0.02843793532 | H38: 0.02843343112 | I38: -3.467337184 | J38: 1127.805442 | K38: 108.3484719 | L38: 0.05993431226 | M38: 5.284155872e-10 | N38: 1.25 | O38: 1 | P38: 0 | Q38: 0 | S38: =LOGNORMDIST(N38,S$31,S$32)-LOGNORMDIST(N37,S$31,S$32) -> 9.356217951e-05 | U38: 0.0125 | V38: =V37+0.005 -> 0.01 | W38: 100 | X38: 0.1385041551 | Y38: =2*( NORMDIST($U38,Y$29,Y$30,TRUE)-NORMDIST($U37,Y$29,Y$30,TRUE)) -> 0.1063666302 | Z38: =(($X38-Y38)^2)/50.5 -> 2.045189127e-05 | AA38: =2*( NORMDIST(U38,AA$29,AA$30,TRUE)-NORMDIST(U37,AA$29,AA$30,TRUE)) -> 0.1261490109 | AB38: =(($X38-AA38)^2)/50.5 -> 3.022764136e-06 | AC38: =2*(1/(1+EXP(-AC$30*U38))-1/(1+EXP(-AC$30*U37))) -> 0.1264918286 | AD38: =(($X38-AC38)^2)/50.5 -> 2.857346288e-06 | AE38: =(($X38-AF38)^2)/50.5 -> 1.7241404e-06 | AF38: 0.1291730732 | AG38: 0.1705481118 | AH38: =(($X38-AG38)^2)/50.5 -> 2.033297352e-05 | AI38: =(GAMMADIST($U38^AI$29,AI$30,AI$31^AI$29,TRUE)-GAMMADIST($U37^AI$29,AI$30,AI$31^AI$29,TRUE)) -> 0.1219052322 | AJ38: =(($X38-AI38)^2)/50.5 -> 5.455925576e-06 | AK38: 0.1332226249 | AL38: =(($X38-AK38)^2)/50.5 -> 5.523675642e-07 | AM38: =AM$31*AI38+(1-AM$31)*AK38 -> 0.1265968219 | AN38: =(($X38-AM38)^2)/50.5 -> 2.807615547e-06 | AO38: -0.1775045042 | AP38: -0.1800045042 | AQ38: 0 | AR38: 0 | AS38: 2.197937297e-07 | AT38: 9.057463673e-10 | AU38: 7.459403666e-05 | AV38: 0.000297983748 | AW38: 4.982549873e-09 | AX38: 1.496477059e-05 | AY38: 0.1237652576
A39: 1953-08-14T18:00:00 | B39: 3.1 | C39: -0.02 | D39: 0.02 | E39: 0.01998614958 | F39: -0.00643089033 | G39: 0.00643089033 | H39: 0.006426386126 | I39: -3.473768074 | J39: 1170.408784 | K39: 111.0601822 | L39: 0.06372736803 | M39: 7.043700773e-14 | N39: 1.75 | O39: 1.5 | P39: 0 | Q39: 0 | S39: 0.001661800166 | U39: 0.0175 | V39: 0.015 | W39: 73 | X39: 0.1011080332 | Y39: 0.1013842626 | Z39: 1.510943849e-09 | AA39: 0.1176339988 | AB39: 5.408070074e-06 | AC39: =2*(1/(1+EXP(-AC$30*U39))-1/(1+EXP(-AC$30*U38))) -> 0.1157261765 | AD39: 4.231487368e-06 | AE39: 2.699869871e-06 | AF39: 0.1127846521 | AG39: 0.1351698135 | AH39: 2.297435391e-05 | AI39: 0.1058843435 | AJ39: 4.517453368e-07 | AK39: 0.124734324 | AL39: 1.105349736e-05 | AM39: 0.1136985439 | AN39: 3.13902886e-06 | AO39: -0.1725045042 | AP39: -0.1750045042 | AQ39: 0 | AR39: 0 | AS39: =NORMDIST(AO39,F$7,F$9,TRUE)-NORMDIST(AO38,F$7,F$9,TRUE) -> 4.343840192e-07 | AT39: 2.443468651e-09 | AU39: 9.202459313e-05 | AV39: 0.0003240247459 | AW39: 1.22023297e-08 | AX39: 1.965333492e-05 | AY39: 0.1120043198
A40: 1953-09-14T04:30:00 | B40: 3.07 | C40: -0.03 | D40: 0.03 | E40: 0.02998614958 | F40: -0.009724549892 | G40: 0.009724549892 | H40: 0.009720045688 | I40: -3.483492624 | J40: 1236.823081 | K40: 115.2227901 | L40: 0.06984174481 | M40: 8.433538613e-13 | N40: 2.25 | O40: 2 | P40: 1 | Q40: 0.001383125864 | S40: 0.008699019864 | U40: 0.0225 | V40: 0.02 | W40: 69 | X40: 0.09556786704 | Y40: 0.09479856205 | Z40: 1.171940901e-08 | AA40: 0.1066697969 | AB40: 2.440650424e-06 | AC40: 0.1026000392 | AD40: =(($X40-AC40)^2)/50.5 -> 9.792365535e-07 | AE40: 7.307949965e-09 | AF40: 0.0961753631 | AG40: 0.09922719101 | AH40: 2.65161425e-07 | AI40: 0.09523584337 | AJ40: 2.182964598e-09 | AK40: 0.1046794883 | AL40: 1.643992914e-06 | AM40: 0.09915067679 | AN40: 2.541886282e-07 | AO40: -0.1675045042 | AP40: -0.1700045042 | AQ40: 0 | AR40: 0 | AS40: 8.421668504e-07 | AT40: 6.410106372e-09 | AU40: 0.0001135102754 | AV40: 0.0003529525085 | AW40: 2.912462244e-08 | AX40: 2.581057834e-05 | AY40: 0.1001563314
A41: 1953-10-14T15:00:00 | B41: 2.95 | C41: -0.12 | D41: 0.12 | E41: 0.1199861496 | F41: -0.03987239125 | G41: 0.03987239125 | H41: 0.03986788704 | I41: -3.523365016 | J41: 1534.764279 | K41: 133.053955 | L41: 0.1002738288 | M41: 4.015497082e-09 | N41: 2.75 | O41: 2.5 | P41: 26 | Q41: 0.03596127248 | S41: 0.02369550519 | U41: 0.0275 | V41: 0.025 | W41: 64 | X41: 0.08864265928 | Y41: 0.08695589068 | Z41: 5.634036234e-08 | AA41: 0.09406101579 | AB41: 5.813581631e-07 | AC41: 0.08845806479 | AD41: 6.747549659e-10 | AE41: 1.164679223e-06 | AF41: 0.08097348066 | AG41: 0.07367498026 | AH41: 4.436265646e-06 | AI41: 0.08636423484 | AJ41: 1.027963948e-07 | AK41: 0.08528760591 | AL41: 2.228986758e-07 | AM41: 0.08591792169 | AN41: 1.470137612e-07 | AO41: -0.1625045042 | AP41: -0.1650045042 | AQ41: 0 | AR41: 0 | AS41: 1.601725997e-06 | AT41: 1.635242127e-08 | AU41: 0.0001399889736 | AV41: 0.0003851600146 | AW41: 6.775090333e-08 | AX41: 3.389635736e-05 | AY41: 0.08798325866
A42: 1953-11-14T01:30:00 | B42: 2.95 | C42: 0 | D42: 0 | E42: 1.385041551e-05 | F42: 0 | G42: 0 | H42: 4.504204136e-06 | I42: -3.523365016 | J42: 1534.764279 | K42: 133.053955 | L42: 0.1002738288 | M42: 8.35042136e-33 | N42: 3.25 | O42: 3 | P42: 41 | Q42: 0.05670816044 | S42: 0.04395417173 | U42: 0.0325 | V42: 0.03 | W42: 55 | X42: 0.07617728532 | Y42: 0.07824603126 | Z42: 8.474672829e-08 | AA42: 0.08065614106 | AB42: 3.972306683e-07 | AC42: 0.07444795018 | AD42: 5.921980223e-08 | AE42: 1.446312516e-06 | AF42: 0.06763101233 | AG42: 0.05610651437 | AH42: 7.976947455e-06 | AI42: 0.0773766371 | AJ42: 2.848405327e-08 | AK42: 0.06912543469 | AL42: 9.84724699e-07 | AM42: 0.07395612699 | AN42: 9.769394654e-08 | AO42: -0.1575045042 | AP42: -0.1600045042 | AQ42: 0 | AR42: 0 | AS42: 2.988436976e-06 | AT42: 4.05655466e-08 | AU42: 0.0001726137504 | AV42: 0.0004211043543 | AW42: 1.536095952e-07 | AX42: 4.451436663e-05 | AY42: 0.0757309151
A43: 1953-12-14T12:00:00 | B43: 2.89 | C43: -0.06 | D43: 0.06 | E43: 0.05998614958 | F43: -0.02054866823 | G43: 0.02054866823 | H43: 0.02054416402 | I43: -3.543913684 | J43: 1704.801843 | K43: 142.7083125 | L43: 0.1198351629 | M43: 7.518493744e-11 | N43: 3.75 | O43: 3.5 | P43: 25 | Q43: 0.03457814661 | S43: 0.06399378882 | U43: 0.0375 | V43: 0.035 | W43: 52 | X43: 0.07202216066 | Y43: 0.06907035368 | Z43: 1.725379105e-07 | AA43: 0.06725503165 | AB43: 4.500102787e-07 | AC43: 0.06139538045 | AD43: 2.236207086e-06 | AE43: 4.971565501e-06 | AF43: 0.05617715963 | AG43: 0.04382419568 | AH43: 1.574505404e-05 | AI43: 0.06701492227 | AJ43: 4.964838876e-07 | AK43: 0.05622288704 | AL43: 4.942911824e-06 | AM43: 0.06254111788 | AN43: 1.780003411e-06 | AO43: -0.1525045042 | AP43: -0.1550045042 | AQ43: 0 | AR43: 0 | AS43: 5.469728734e-06 | AT43: 9.785682042e-08 | AU43: 0.0002128016324 | AV43: 0.0004613190271 | AW43: 3.394546679e-07 | AX43: 5.845702333e-05 | AY43: 0.06378009522
A44: 1954-01-13T22:30:00 | B44: 2.8 | C44: -0.09 | D44: 0.09 | E44: 0.08998614958 | F44: -0.03163708494 | G44: 0.03163708494 | H44: 0.03163258074 | I44: -3.575550769 | J44: 1989.106403 | K44: 158.1631638 | L44: 0.1561079575 | M44: 1.001861647e-09 | N44: 4.25 | O44: 4 | P44: 95 | Q44: 0.1313969571 | S44: 0.07931234064 | U44: 0.0425 | V44: 0.04 | W44: 39 | X44: 0.0540166205 | Y44: 0.05981182966 | Z44: 6.650385987e-07 | AA44: 0.05453454265 | AB44: 5.311749611e-09 | AC44: 0.0497876798 | AD44: 3.541374137e-07 | AE44: 1.125943362e-06 | AF44: 0.04647605422 | AG44: 0.0350102458 | AH44: 7.153312459e-06 | AI44: 0.05465538026 | AJ44: 8.079485775e-09 | AK44: 0.04603934504 | AL44: 1.260137102e-06 | AM44: 0.05108362986 | AN44: 1.703452295e-07 | AO44: -0.1475045042 | AP44: -0.1500045042 | AQ44: 0 | AR44: 0 | AS44: 9.820945499e-06 | AT44: 2.295532456e-07 | AU44: 0.0002622932697 | AV44: 0.0005064289723 | AW44: 7.311688134e-07 | AX44: 7.676428043e-05 | AY44: 0.05251206963
A45: 1954-02-13T09:00:00 | B45: 2.72 | C45: -0.08 | D45: 0.08 | E45: 0.07998614958 | F45: -0.02898753687 | G45: 0.02898753687 | H45: 0.02898303267 | I45: -3.604538306 | J45: 2273.98423 | K45: 172.925205 | L45: 0.1969617498 | M45: 5.927382562e-10 | N45: 4.75 | O45: 4.5 | P45: 57 | Q45: 0.07883817427 | S45: 0.0879257406 | U45: 0.0475 | V45: 0.045 | W45: 21 | X45: 0.02908587258 | Y45: 0.05080992326 | Z45: 9.345235212e-06 | AA45: 0.04300095539 | AB45: 3.834248113e-06 | AC45: 0.0398273598 | AD45: 2.284743519e-06 | AE45: 1.693119279e-06 | AF45: 0.03833263004 | AG45: 0.02851760362 | AH45: 6.394645646e-09 | AI45: 0.04064213148 | AJ45: 2.644497421e-06 | AK45: 0.03799767466 | AL45: 1.572677553e-06 | AM45: 0.03954588019 | AN45: 2.166569491e-06 | AO45: -0.1425045042 | AP45: -0.1450045042 | AQ45: 0 | AR45: 0 | AS45: 1.72984286e-05 | AT45: 5.236419208e-07 | AU45: 0.0003232258108 | AV45: 0.0005571690249 | AW45: 1.535107511e-06 | AX45: 0.0001008006353 | AY45: 0.04224185807
A46: 1954-03-15T19:30:00 | B46: 2.61 | C46: -0.11 | D46: 0.11 | E46: 0.1099861496 | F46: -0.04128165897 | G46: 0.04128165897 | H46: 0.04127715477 | I46: -3.645819965 | J46: 2720.541524 | K46: 194.881332 | L46: 0.2702233941 | M46: 4.946050231e-09 | N46: 5.25 | O46: 5 | P46: 55 | Q46: 0.07607192254 | S46: 0.09000784955 | U46: 0.0525 | V46: 0.05 | W46: 18 | X46: 0.02493074792 | Y46: 0.04234245447 | Z46: 6.003317327e-06 | AA46: 0.03297190584 | AB46: 1.28040041e-06 | AC46: 0.03151329203 | AD46: 8.580175618e-07 | AE46: 8.64962872e-07 | AF46: 0.03153987987 | AG46: 0.0236195026 | AH46: 3.404681759e-08 | AI46: 0.02649021115 | AJ46: 4.815694171e-08 | AK46: 0.03161293478 | AL46: 8.841905176e-07 | AM46: 0.02861382018 | AN46: 2.686142817e-07 | AO46: -0.1375045042 | AP46: -0.1400045042 | AQ46: 0 | AR46: 0 | AS46: 2.988999622e-05 | AT46: 1.161566483e-06 | AU46: 0.0003982218263 | AV46: 0.0006144066906 | AW46: 3.141656295e-06 | AX46: 0.0001323558658 | AY46: 0.03318618202
A47: 1954-04-15T06:00:00 | B47: 2.6 | C47: -0.01 | D47: 0.01 | E47: 0.009986149584 | F47: -0.003838776307 | G47: 0.003838776307 | H47: 0.003834272103 | I47: -3.649658741 | J47: 2764.523081 | K47: 196.9760754 | L47: 0.2780570675 | M47: 3.177587941e-15 | N47: 5.75 | O47: 5.5 | P47: 40 | Q47: 0.05532503458 | S47: 0.08691417943 | U47: 0.0575 | V47: 0.055 | W47: 17 | X47: 0.02354570637 | Y47: 0.03461541589 | Z47: 2.426504334e-06 | AA47: 0.02458495926 | AB47: 2.13870606e-08 | AC47: 0.02471982589 | AD47: 2.729815117e-08 | AE47: 1.097820349e-07 | AF47: 0.02590027486 | AG47: 0.01984544636 | AH47: 2.711272116e-07 | AI47: 0.01443439134 | AJ47: 1.643882409e-06 | AK47: 0.02650607931 | AL47: 1.735407507e-07 | AM47: 0.01943867176 | AN47: 3.340145213e-07 | AO47: -0.1325045042 | AP47: -0.1350045042 | AQ47: 1 | AR47: 0.001385041551 | AS47: 5.06653369e-05 | AT47: 2.505604338e-06 | AU47: 0.000490497676 | AV47: 0.0006791703948 | AW47: 6.267458466e-06 | AX47: 0.0001737766385 | AY47: 0.02545469485
A48: 1954-05-15T16:30:00 | B48: 2.66 | C48: 0.06 | D48: 0.06 | E48: 0.06001385042 | F48: 0.02281467777 | G48: 0.02281467777 | H48: 0.02281918197 | I48: -3.626844063 | J48: 2509.27953 | K48: 184.6571078 | L48: 0.2341472691 | M48: 1.411888594e-10 | N48: 6.25 | O48: 6 | P48: 57 | Q48: 0.07883817427 | S48: 0.08034613847 | U48: 0.0625 | V48: 0.06 | W48: 13 | X48: 0.01800554017 | Y48: 0.02776061657 | Z48: 1.884386449e-06 | AA48: 0.01782602073 | AB48: 6.381629075e-10 | AC48: 0.01925947144 | AD48: 3.113551749e-08 | AE48: 2.065071929e-07 | AF48: 0.02123487651 | AG48: 0.01688297597 | AH48: 2.495347293e-08 | AI48: 0.006217848822 | AJ48: 2.751478559e-06 | AK48: 0.02238821338 | AL48: 3.80352961e-07 | AM48: 0.01292122278 | AN48: 5.118867976e-07 | AO48: -0.1275045042 | AP48: -0.1300045042 | AQ48: 0 | AR48: 0 | AS48: 8.424844442e-05 | AT48: 5.255810837e-06 | AU48: 0.000603995385 | AV48: 0.0007526847148 | AW48: 1.218855317e-05 | AX48: 0.0002281381617 | AY48: 0.01905771429
A49: 1954-06-15T03:00:00 | B49: 2.64 | C49: -0.02 | D49: 0.02 | E49: 0.01998614958 | F49: -0.007547205635 | G49: 0.007547205635 | H49: 0.007542701431 | I49: -3.634391269 | J49: 2592.079856 | K49: 188.697256 | L49: 0.2479815721 | M49: 1.841456661e-13 | N49: 6.75 | O49: 6.5 | P49: 46 | Q49: 0.06362378976 | S49: 0.07185907839 | U49: 0.0675 | V49: 0.065 | W49: 9 | X49: 0.01246537396 | Y49: 0.02184010315 | Z49: 1.740307867e-06 | AA49: 0.01256894335 | AB49: 2.124082884e-10 | AC49: 0.01492592085 | AD49: 1.198869506e-07 | AE49: 4.795253962e-07 | AF49: 0.01738635278 | AG49: 0.01451928789 | AH49: 8.353588932e-08 | AI49: 0.001984232792 | AJ49: 2.175333074e-06 | AK49: 0.01904067625 | AL49: 8.561306979e-07 | AM49: 0.009054927982 | AN49: 2.303196391e-07 | AO49: -0.1225045042 | AP49: -0.1250045042 | AQ49: 0 | AR49: 0 | AS49: 0.0001374291121 | AT49: 1.072076633e-05 | AU49: 0.0007435428619 | AV49: 0.0008364145671 | AW49: 2.310769403e-05 | AX49: 0.0002994675717 | AY49: 0.01392460305
A50: 1954-07-15T13:30:00 | B50: 2.57 | C50: -0.07 | D50: 0.07 | E50: 0.06998614958 | F50: -0.02687301825 | G50: 0.02687301825 | H50: 0.02686851405 | I50: -3.661264287 | J50: 2900.038737 | K50: 203.3617167 | L50: 0.3029003936 | M50: 3.762373368e-10 | N50: 7.25 | O50: 7 | P50: 41 | Q50: 0.05670816044 | S50: 0.0626591551 | U50: 0.0725 | V50: 0.07 | W50: 6 | X50: 0.008310249307 | Y50: 0.01685568009 | Z50: 1.44602747e-06 | AA50: 0.008617921821 | AB50: 1.874502488e-09 | AC50: 0.011520005 | AD50: 2.040105269e-07 | AE50: 6.913441146e-07 | AF50: 0.01421896133 | AG50: 0.01260599762 | AH50: 3.654149222e-07 | AI50: 0.0004353754536 | AJ50: 1.227992836e-06 | AK50: 0.01629776562 | AL50: 1.263374592e-06 | AM50: 0.007011079594 | AN50: 3.342261278e-08 | AO50: -0.1175045042 | AP50: -0.1200045042 | AQ50: 0 | AR50: 0 | AS50: 0.0002199183643 | AT50: 2.126526792e-05 | AU50: 0.0009150481755 | AV50: 0.0009321209588 | AW50: 4.270922425e-05 | AX50: 0.0003930337872 | AY50: 0.009927402645
A51: 1954-08-15 | B51: 2.58 | C51: 0.01 | D51: 0.01 | E51: 0.01001385042 | F51: 0.003883500026 | G51: 0.003883500026 | H51: 0.003888004231 | I51: -3.657380787 | J51: 2854.265327 | K51: 201.2161776 | L51: 0.2943893788 | M51: 3.454302547e-15 | N51: 7.75 | O51: 7.5 | P51: 49 | Q51: 0.06777316736 | S51: 0.05357543358 | U51: 0.0775 | V51: 0.075 | W51: 3 | X51: 0.004155124654 | Y51: 0.0127615635 | Z51: 1.466748308e-06 | AA51: 0.005746001315 | AB51: 5.011660496e-08 | AC51: 0.008863100781 | AD51: 4.389116676e-07 | AE51: 1.102589973e-06 | AF51: 0.01161708108 | AG51: 0.01103738983 | AH51: 9.379321567e-07 | AI51: 6.033728123e-05 | AJ51: 3.320254183e-07 | AK51: 0.01403327189 | AL51: 1.932233521e-06 | AM51: 0.005852773538 | AN51: 5.706953931e-08 | AO51: -0.1125045042 | AP51: -0.1150045042 | AQ51: 1 | AR51: 0.001385041551 | AS51: 0.0003452313059 | AT51: 4.101803625e-05 | AU51: 0.001125734596 | AV51: 0.001041931767 | AW51: 7.696005548e-05 | AX51: 0.0005157221318 | AY51: 0.006905132231
A52: 1954-09-14T10:30:00 | B52: 2.6 | C52: 0.02 | D52: 0.02 | E52: 0.02001385042 | F52: 0.007722046094 | G52: 0.007722046094 | H52: 0.007726550298 | I52: -3.649658741 | J52: 2764.523081 | K52: 196.9760754 | L52: 0.2780570675 | M52: 2.12771677e-13 | N52: 8.25 | O52: 8 | P52: 48 | Q52: 0.06639004149 | S52: 0.04511429969 | U52: 0.0825 | V52: 0.08 | W52: 5 | X52: 0.006925207756 | Y52: 0.009478235497 | Z52: 1.290683297e-07 | AA52: 0.003725531589 | AB52: 2.027312391e-07 | AC52: 0.00680233065 | AD52: 2.98985808e-10 | AE52: 1.295635017e-07 | AF52: 0.009483128168 | AG52: 0.009736666545 | AH52: 1.565208024e-07 | AI52: 4.796894349e-06 | AJ52: 9.483581485e-07 | AK52: 0.01215039889 | AL52: 5.406459868e-07 | AM52: 0.005039718141 | AN52: 7.039744729e-08 | AO52: -0.1075045042 | AP52: -0.1100045042 | AQ52: 2 | AR52: 0.002770083102 | AS52: 0.000531648723 | AT52: 7.693746949e-05 | AU52: 0.001384424192 | AV52: 0.001168432181 | AW52: 0.0001352094218 | AX52: 0.0006765159628 | AY52: 0.004685360869
A53: 1954-10-14T21:00:00 | B53: 2.61 | C53: 0.01 | D53: 0.01 | E53: 0.01001385042 | F53: 0.003838776307 | G53: 0.003838776307 | H53: 0.003843280511 | I53: -3.645819965 | J53: 2720.541524 | K53: 194.881332 | L53: 0.2702233941 | M53: 3.222645259e-15 | N53: 8.75 | O53: 8.5 | P53: 32 | Q53: 0.04426002766 | S53: 0.03753905392 | U53: 0.0875 | V53: 0.085 | W53: 3 | X53: 0.004155124654 | Y53: 0.006905849358 | Z53: 1.498314138e-07 | AA53: 0.002348930155 | AB53: 6.460076371e-08 | AC53: 0.005210930442 | AD53: 2.207377946e-08 | AE53: 2.538150647e-07 | AF53: 0.007735300734 | AG53: 0.008647045723 | AH53: 3.99551582e-07 | AI53: 1.961577977e-07 | AJ53: 3.41850115e-07 | AK53: 0.01057433451 | AL53: 8.15965449e-07 | AM53: 0.004383672077 | AN53: 1.034335145e-09 | AO53: -0.1025045042 | AP53: -0.1050045042 | AQ53: 1 | AR53: 0.001385041551 | AS53: 0.0008031660077 | AT53: 0.0001403330641 | AU53: 0.001701878896 | AV53: 0.001314781051 | AW53: 0.0002316152728 | AX53: 0.0008871114681 | AY53: 0.003101033245
A54: 1954-11-14T07:30:00 | B54: 2.65 | C54: 0.04 | D54: 0.04 | E54: 0.04001385042 | F54: 0.01520941866 | G54: 0.01520941866 | H54: 0.01521392287 | I54: -3.630610546 | J54: 2550.399688 | K54: 186.6689843 | L54: 0.2409686521 | M54: 1.240073026e-11 | N54: 9.25 | O54: 9 | P54: 30 | Q54: 0.04149377593 | S54: 0.03094604468 | U54: 0.0925 | V54: 0.09 | W54: 6 | X54: 0.008310249307 | Y54: 0.004935972076 | Z54: 2.254603334e-07 | AA54: 0.001440161658 | AB54: 9.346159269e-07 | AC54: 0.003986104852 | AD54: 3.702618865e-07 | AE54: 7.959384386e-08 | AF54: 0.006305382949 | AG54: 0.007725870155 | AH54: 6.762356312e-09 | AI54: 3.645401203e-09 | AJ54: 1.367528376e-06 | AK54: 0.009246795848 | AL54: 1.736870143e-08 | AM54: 0.003833232378 | AN54: 3.969045661e-07 | AO54: -0.0975045042 | AP54: -0.1000045042 | AQ54: 0 | AR54: 0 | AS54: 0.001190287342 | AT54: 0.0002489093669 | AU54: 0.002091209073 | AV54: 0.00148486163 | AW54: 0.0003868731231 | AX54: 0.001162694841 | AY54: 0.002001819565
A55: 1954-12-14T18:00:00 | B55: 2.67 | C55: 0.02 | D55: 0.02 | E55: 0.02001385042 | F55: 0.007518832414 | G55: 0.007518832414 | H55: 0.007523336618 | I55: -3.623091714 | J55: 2468.713348 | K55: 182.661538 | L55: 0.2275122597 | M55: 1.813272036e-13 | N55: 9.75 | O55: 9.5 | P55: 6 | Q55: 0.008298755187 | S55: 0.02532628231 | U55: 0.0975 | V55: 0.095 | W55: 3 | X55: 0.004155124654 | Y55: 0.003460941569 | Z55: 9.542379308e-09 | AA55: 0.0008586410262 | AB55: 2.151842437e-07 | AC55: 0.003045823114 | AD55: 2.436732489e-08 | AE55: 1.907983237e-08 | AF55: 0.005136721075 | AG55: 0.006940627646 | AH55: 1.536440974e-07 | AI55: 2.67549316e-11 | AJ55: 3.418823894e-07 | AK55: 0.008122016684 | AL55: 3.11608562e-07 | AM55: 0.003366956582 | AN55: 1.230116653e-08 | AO55: -0.0925045042 | AP55: -0.0950045042 | AQ55: 1 | AR55: 0.001385041551 | AS55: 0.001730470785 | AT55: 0.0004293205131 | AU55: 0.002568360538 | AV55: 0.001683478291 | AW55: 0.0006301377936 | AX55: 0.001522911557 | AY55: 0.001260275587
A56: 1955-01-14T04:30:00 | B56: 2.75 | C56: 0.08 | D56: 0.08 | E56: 0.08001385042 | F56: 0.02952243927 | G56: 0.02952243927 | H56: 0.02952694347 | I56: -3.593569274 | J56: 2163.418749 | K56: 167.2734674 | L56: 0.1805667797 | M56: 6.626908216e-10 | N56: 10.25 | O56: 10 | P56: 4 | Q56: 0.005532503458 | S56: 0.02061063331 | U56: 0.1025 | V56: 0.1 | W56: 1 | X56: 0.001385041551 | Y56: 0.002380574683 | Z56: 1.962546965e-08 | AA56: 0.0004978187338 | AB56: 1.558741243e-08 | AC56: 0.002325389682 | AD56: 1.75099922e-08 | AE56: 1.549567488e-07 | AF56: 0.004182418146 | AG56: 0.006266210789 | AH56: 4.717982797e-07 | AI56: 6.616929227e-14 | AJ56: 3.798693264e-08 | AK56: 0.007163781709 | AL56: 6.61264115e-07 | AM56: 0.002969723259 | AN56: 4.972705181e-08 | AO56: -0.0875045042 | AP56: -0.0900045042 | AQ56: 3 | AR56: 0.004155124654 | AS56: 0.002467986038 | AT56: 0.0007200808292 | AU56: 0.003152691475 | AV56: 0.001916616189 | AW56: 0.001000909783 | AX56: 0.001993052426 | AY56: 0.0007737462463
A57: 1955-02-13T15:00:00 | B57: 2.83 | C57: 0.08 | D57: 0.08 | E57: 0.08001385042 | F57: 0.02867579998 | G57: 0.02867579998 | H57: 0.02868030418 | I57: -3.564893474 | J57: 1890.256549 | K57: 152.8787657 | L57: 0.1429888747 | M57: 5.565478619e-10 | N57: 10.75 | O57: 10.5 | P57: 12 | Q57: 0.01659751037 | S57: 0.01670065208 | U57: 0.1075 | V57: 0.105 | W57: 1 | X57: 0.001385041551 | Y57: 0.001606332015 | Z57: 9.696924652e-10 | AA57: 0.0002806661281 | AB57: 2.415138763e-08 | AC57: 0.001774222936 | AD57: 2.999250501e-09 | AE57: 8.069733186e-08 | AF57: 0.003403757792 | AG57: 0.005682997009 | AH57: 3.657905172e-07 | AI57: 0 | AJ57: 3.798693265e-08 | AK57: 0.006343220308 | AL57: 4.868027046e-07 | AM57: 0.002629562102 | AN57: 3.066992874e-08 | AO57: -0.0825045042 | AP57: -0.0850045042 | AQ57: 2 | AR57: 0.002770083102 | AS57: 0.003452924679 | AT57: 0.001174465077 | AU57: 0.003867650367 | AV57: 0.002191836039 | AW57: 0.001550516622 | AX57: 0.002605465221 | AY57: 0.0004632305455
A58: 1955-03-16T01:30:00 | B58: 2.84 | C58: 0.01 | D58: 0.01 | E58: 0.01001385042 | F58: 0.003527340518 | G58: 0.003527340518 | H58: 0.003531844722 | I58: -3.561366134 | J58: 1858.230878 | K58: 151.147087 | L58: 0.1388546893 | M58: 1.940928822e-15 | N58: 11.25 | O58: 11 | P58: 8 | Q58: 0.01106500692 | S58: 0.01348829133 | U58: 0.1125 | V58: 0.11 | W58: 2 | X58: 0.002770083102 | Y58: 0.001063297446 | Z58: 5.768549063e-08 | AA58: 0.000153874939 | AB58: 1.355355476e-07 | AC58: 0.001353031926 | AD58: 3.976305026e-08 | AE58: 3.018871248e-14 | AF58: 0.002768848384 | AG58: 0.005175481556 | AH58: 1.145731034e-07 | AI58: 0 | AJ58: 1.519477306e-07 | AK58: 0.005637153603 | AL58: 1.627741238e-07 | AM58: 0.002336864362 | AN58: 3.716405491e-09 | AO58: -0.0775045042 | AP58: -0.0800045042 | AQ58: 0 | AR58: 0 | AS58: 0.004739117749 | AT58: 0.001862765794 | AU58: 0.004741564084 | AV58: 0.002519859071 | AW58: 0.002342680435 | AX58: 0.003401165325 | AY58: 0.0002704188435
A59: 1955-04-15T12:00:00 | B59: 2.85 | C59: 0.01 | D59: 0.01 | E59: 0.01001385042 | F59: 0.003514942107 | G59: 0.003514942107 | H59: 0.003519446312 | I59: -3.557851192 | J59: 1826.658653 | K59: 149.4301614 | L59: 0.1348346027 | M59: 1.900404574e-15 | N59: 11.75 | O59: 11.5 | P59: 9 | Q59: 0.01244813278 | S59: 0.01086763537 | U59: 0.1175 | V59: 0.115 | W59: 2 | X59: 0.002770083102 | Y59: 0.0006904626119 | Z59: 8.564002743e-08 | AA59: 8.20360725e-05 | AB59: 1.430811255e-07 | AC59: 0.001031444264 | AD59: 5.985871311e-08 | AE59: 5.325948269e-09 | AF59: 0.002251469193 | AG59: 0.004731289686 | AH59: 7.61649755e-08 | AI59: 0 | AJ59: 1.519477306e-07 | AK59: 0.005026846668 | AL59: 1.008511246e-07 | AM59: 0.002083863534 | AN59: 9.324698921e-09 | AO59: -0.0725045042 | AP59: -0.0750045042 | AQ59: 2 | AR59: 0.002770083102 | AS59: 0.006380781748 | AT59: 0.002873000657 | AU59: 0.005808540538 | AV59: 0.002926386769 | AW59: 0.003452566116 | AX59: 0.00443155039 | AY59: 0.000153920111
A60: 1955-05-15T22:30:00 | B60: 2.87 | C60: 0.02 | D60: 0.02 | E60: 0.02001385042 | F60: 0.006993035491 | G60: 0.006993035491 | H60: 0.006997539695 | I60: -3.550858156 | J60: 1764.853977 | K60: 146.0402335 | L60: 0.1271245478 | M60: 1.174011158e-13 | N60: 12.25 | O60: 12 | P60: 11 | Q60: 0.01521438451 | S60: 0.008741233132 | U60: 0.1225 | V60: 0.12 | W60: 0 | X60: 0 | Y60: 0.0004398367287 | Z60: 3.83081877e-09 | AA60: 4.253053584e-05 | AB60: 3.581874215e-11 | AC60: 0.0007860675743 | AD60: 1.223568775e-08 | AE60: 6.632183473e-08 | AF60: 0.001830096351 | AG60: 0.00434045307 | AH60: 3.730600566e-07 | AI60: 0 | AJ60: 0 | AK60: 0.004497059485 | AL60: 4.00466218e-07 | AM60: 0.001864241918 | AN60: 6.881976094e-08 | AO60: -0.0675045042 | AP60: -0.0700045042 | AQ60: 1 | AR60: 0.001385041551 | AS60: 0.008427840044 | AT60: 0.004308960911 | AU60: 0.007109480666 | AV60: 0.003505539797 | AW60: 0.004963701322 | AX60: 0.0057600025 | AY60: 8.54184485e-05
A61: 1955-06-15T09:00:00 | B61: 2.86 | C61: -0.01 | D61: 0.01 | E61: 0.009986149584 | F61: -0.00349040494 | G61: 0.00349040494 | H61: 0.003485900736 | I61: -3.554348561 | J61: 1795.534721 | K61: 147.7279049 | L61: 0.1309255498 | M61: 1.794279503e-15 | N61: 12.75 | O61: 12.5 | P61: 8 | Q61: 0.01106500692 | S61: 0.007022958899 | U61: 0.1275 | V61: 0.125 | W61: 1 | X61: 0.001385041551 | Y61: 0.0002748582242 | Z61: 2.44060796e-08 | AA61: 2.144153265e-05 | AB61: 3.68199012e-08 | AC61: 0.0005989351433 | AD61: 1.223689672e-08 | AE61: 2.061982805e-10 | AF61: 0.001487085724 | AG61: 0.003994873034 | AH61: 1.348756508e-07 | AI61: 0 | AJ61: 3.798693265e-08 | AK61: 0.004035319693 | AL61: 1.390885986e-07 | AM61: 0.001672829134 | AN61: 1.640033522e-09 | AO61: -0.0625045042 | AP61: -0.0650045042 | AQ61: 5 | AR61: 0.006925207756 | AS61: 0.01092005157 | AT61: 0.006284471676 | AU61: 0.008693176389 | AV61: 0.004527463991 | AW61: 0.006962301527 | AX61: 0.007462960426 | AY61: 4.621538807e-05
A62: 1955-07-15T19:30:00 | B62: 2.94 | C62: 0.08 | D62: 0.08 | E62: 0.08001385042 | F62: 0.02758795652 | G62: 0.02758795652 | H62: 0.02759246072 | I62: -3.526760605 | J62: 1562.078171 | K62: 134.6279323 | L62: 0.1033086549 | M62: 4.413088106e-10 | N62: 13.25 | O62: 13 | P62: 4 | Q62: 0.005532503458 | S62: 0.0056387586 | U62: 0.1325 | V62: 0.13 | W62: 1 | X62: 0.001385041551 | Y62: 0.0001684968888 | Z62: 2.930655279e-08 | AA62: 1.051162167e-05 | AB62: 3.741252529e-08 | AC62: 0.0004562763235 | AD62: 1.708128413e-08 | AE62: 6.207322603e-10 | AF62: 0.00120799077 | AG62: 0.003687917716 | AH62: 1.050146264e-07 | AI62: 0 | AJ62: 3.798693265e-08 | AK62: 0.003631361256 | AL62: 9.991984584e-08 | AM62: 0.00150536943 | AN62: 2.867088777e-10 | AO62: -0.0575045042 | AP62: -0.0600045042 | AQ62: 7 | AR62: 0.009695290859 | AS62: 0.01388030829 | AT62: 0.008913010367 | AU62: 0.01061743826 | AV62: 0.00646061139 | AW62: 0.009528857146 | AX62: 0.009629735719 | AY62: 2.437710634e-05
A63: 1955-08-15T06:00:00 | B63: 3.01 | C63: 0.07 | D63: 0.07 | E63: 0.07001385042 | F63: 0.02353049741 | G63: 0.02353049741 | H63: 0.02353500161 | I63: -3.503230107 | J63: 1379.101028 | K63: 123.8979312 | L63: 0.08376295544 | M63: 1.699360012e-10 | N63: 13.75 | O63: 13.5 | P63: 9 | Q63: 0.01244813278 | S63: 0.004526194415 | U63: 0.1375 | V63: 0.135 | W63: 2 | X63: 0.002770083102 | Y63: 0.0001013306738 | Z63: 1.410344461e-07 | AA63: 5.011208675e-06 | AB63: 1.513984669e-07 | AC63: 0.0003475532771 | AD63: 1.16210906e-07 | AE63: 6.338287087e-08 | AF63: 0.000980995352 | AG63: 0.003414116464 | AH63: 8.213444964e-09 | AI63: 0 | AJ63: 1.519477306e-07 | AK63: 0.003276688113 | AL63: 5.082151219e-09 | AM63: 0.00135834079 | AN63: 3.946567045e-08 | AO63: -0.0525045042 | AP63: -0.0550045042 | AQ63: 7 | AR63: 0.009695290859 | AS63: 0.01730770795 | AT63: 0.01229247963 | AU63: 0.01295013743 | AV63: 0.009719335878 | AW63: 0.01272734743 | AX63: 0.01235991294 | AY63: 1.253491693e-05
A64: 1955-09-14T16:30:00 | B64: 3 | C64: -0.01 | D64: 0.01 | E64: 0.009986149584 | F64: -0.003327790093 | G64: 0.003327790093 | H64: 0.003323285889 | I64: -3.506557897 | J64: 1404.089312 | K64: 125.3900731 | L64: 0.08632339782 | M64: 1.347119804e-15 | N64: 14.25 | O64: 14 | P64: 4 | Q64: 0.005532503458 | S64: 0.003633376073 | U64: 0.1425 | V64: 0.14 | W64: 0 | X64: 0 | Y64: 5.977999245e-05 | Z64: 7.076529697e-11 | AA64: 2.323132967e-06 | AB64: 1.068702333e-13 | AC64: 0.0002647117316 | AD64: 1.387570314e-09 | AE64: 1.256084142e-08 | AF64: 0.0007964436526 | AG64: 0.003168925636 | AH64: 1.988532611e-07 | AI64: 0 | AJ64: 0 | AK64: 0.002964232709 | AL64: 1.739935753e-07 | AM64: 0.001228813381 | AN64: 2.990064011e-08 | AO64: -0.0475045042 | AP64: -0.0500045042 | AQ64: 10 | AR64: 0.01385041551 | AS64: 0.02117122724 | AT64: 0.01648595292 | AU64: 0.01576993993 | AV64: 0.01430691009 | AW64: 0.01659309101 | AX64: 0.01575664601 | AY64: 6.28331259e-06
A65: 1955-10-15T03:00:00 | B65: 2.93 | C65: -0.07 | D65: 0.07 | E65: 0.06998614958 | F65: -0.02360986564 | G65: 0.02360986564 | H65: 0.02360536143 | I65: -3.530167763 | J65: 1589.795949 | K65: 136.215833 | L65: 0.1064303712 | M65: 1.730071003e-10 | N65: 14.75 | O65: 14.5 | P65: 3 | Q65: 0.004149377593 | S65: 0.002917642132 | U65: 0.1475 | V65: 0.145 | W65: 0 | X65: 0 | Y65: 3.459685721e-05 | Z65: 2.370183225e-11 | AA65: 1.047283842e-06 | AB65: 2.17188801e-14 | AC65: 0.0002016012706 | AD65: 8.048133126e-10 | AE65: 8.275241568e-09 | AF65: 0.0006464516217 | AG65: 0.002948547453 | AH65: 1.72157071e-07 | AI65: 0 | AJ65: 0 | AK65: 0.002688087017 | AL65: 1.430853824e-07 | AM65: 0.00111433805 | AN65: 2.458909484e-08 | AO65: -0.0425045042 | AP65: -0.0450045042 | AQ65: 12 | AR65: 0.01662049861 | AS65: 0.02540496163 | AT65: 0.02150047769 | AU65: 0.01916631502 | AV65: 0.0197729401 | AW65: 0.02112092904 | AX65: 0.0199136799 | AY65: 3.070215023e-06
A66: 1955-11-14T13:30:00 | B66: 2.93 | C66: 0 | D66: 0 | E66: 1.385041551e-05 | F66: 0 | G66: 0 | H66: 4.504204136e-06 | I66: -3.530167763 | J66: 1589.795949 | K66: 136.215833 | L66: 0.1064303712 | M66: 8.35042136e-33 | N66: 15.25 | O66: 15 | P66: 2 | Q66: 0.002766251729 | S66: 0.002344204141 | U66: 0.1525 | V66: 0.15 | W66: 0 | X66: 0 | Y66: 1.9641891e-05 | Z66: 7.639680831e-12 | AA66: 4.591064913e-07 | AB66: 4.173837036e-15 | AC66: 0.0001535285609 | AD66: 4.667528515e-10 | AE66: 5.44932747e-09 | AF66: 0.0005245865393 | AG66: 0.002749788645 | AH66: 1.497294573e-07 | AI66: 0 | AJ66: 0 | AK66: 0.002443289352 | AL66: 1.182111456e-07 | AM66: 0.001012857945 | AN66: 2.031447952e-08 | AO66: -0.0375045042 | AP66: -0.0400045042 | AQ66: 20 | AR66: 0.02770083102 | AS66: 0.02990591483 | AT66: 0.02726727133 | AU66: 0.02323802711 | AV66: 0.02554181493 | AW66: 0.02625603482 | AX66: 0.0248938399 | AY66: 1.462337627e-06
A67: 1955-12-15 | B67: 2.98 | C67: 0.05 | D67: 0.05 | E67: 0.05001385042 | F67: 0.01692087749 | G67: 0.01692087749 | H67: 0.01692538169 | I67: -3.513246885 | J67: 1455.198917 | K67: 128.4147494 | L67: 0.09166763073 | M67: 2.350881989e-11 | N67: 15.75 | O67: 15.5 | P67: 0 | Q67: 0 | S67: 0.001884869569 | U67: 0.1575 | V67: 0.155 | W67: 0 | X67: 0 | Y67: 1.093945747e-05 | Z67: 2.369737222e-12 | AA67: 1.957136408e-07 | AB67: 7.584916676e-16 | AC67: 0.0001169140467 | AD67: 2.706711743e-10 | AE67: 3.586893842e-09 | AF67: 0.0004256032648 | AG67: 0.002569949245 | AH67: 1.307849331e-07 | AI67: 0 | AJ67: 0 | AK67: 0.002225654392 | AL67: 9.808985097e-08 | AM67: 0.0009226380542 | AN67: 1.685665305e-08 | AO67: -0.0325045042 | AP67: -0.0350045042 | AQ67: 28 | AR67: =AQ67/COUNTA(F$36:F$7001) -> 0.03878116343 | AS67: 0.03453517684 | AT67: 0.03362751582 | AU67: 0.02808857981 | AV67: 0.03127055894 | AW67: 0.03189004761 | AX67: 0.03069769022 | AY67: 6.789093359e-07
A68: 1956-01-14T10:30:00 | B68: 2.94 | C68: -0.04 | D68: 0.04 | E68: 0.03998614958 | F68: -0.01351371917 | G68: 0.01351371917 | H68: 0.01350921496 | I68: -3.526760605 | J68: 1562.078171 | K68: 134.6279323 | L68: 0.1033086549 | M68: 6.078279606e-12 | N68: 16.25 | O68: 16 | P68: 0 | Q68: 0 | S68: 0.001516898886 | U68: 0.1625 | V68: 0.16 | W68: 0 | X68: 0 | Y68: 5.976873953e-06 | Z68: 7.073865792e-13 | AA68: 8.113109318e-08 | AB68: 1.303416689e-16 | AC68: 8.902873327e-05 | AD68: 1.569527792e-10 | AE68: 2.360040144e-09 | AF68: 0.0003452275007 | AG68: 0.002406734434 | AH68: 1.147004086e-07 | AI68: 0 | AJ68: 0 | AK68: 0.002031636895 | AL68: 8.173363314e-08 | AM68: 0.0008422087087 | AN68: 1.404585166e-08 | AO68: -0.0275045042 | AP68: -0.0300045042 | AQ68: 31 | AR68: 0.04293628809 | AS68: 0.03912301563 | AT68: 0.04032807053 | AU68: 0.03381550616 | AV68: 0.0369780635 | AW68: 0.03786545755 | AX68: 0.03722397509 | AY68: 3.072191904e-07
A69: 1956-02-13T21:00:00 | B69: 2.91 | C69: -0.03 | D69: 0.03 | E69: 0.02998614958 | F69: -0.01025650017 | G69: 0.01025650017 | H69: 0.01025199596 | I69: -3.537017105 | J69: 1646.462265 | K69: 139.4337329 | L69: 0.1129441456 | M69: 1.161049027e-12 | N69: 16.75 | O69: 16.5 | P69: 0 | Q69: =P69/COUNTA(B$35:B$7001) -> 0 | S69: 0.001222016045 | U69: 0.1675 | V69: 0.165 | W69: 0 | X69: =W69/COUNTA(H$36:H$7001) -> 0 | Y69: 3.203451995e-06 | Z69: 2.032099937e-13 | AA69: 3.270484239e-08 | AB69: 2.1180331e-17 | AC69: 6.779271473e-05 | AD69: 9.100697367e-11 | AE69: 1.552230712e-09 | AF69: =(GAMMADIST(U69,AF$30,AF$31,TRUE)-GAMMADIST(U68,AF$30,AF$31,TRUE)) -> 0.0002799779473 | AG69: =(1-GAMMADIST(1/U69,AG$30,1/AG$31,TRUE))-(1-GAMMADIST(1/U68,AG$30,1/AG$31,TRUE)) -> 0.002258184143 | AH69: 1.009781312e-07 | AI69: 0 | AJ69: 0 | AK69: =(1-GAMMADIST((1/U69)^AK$29,AK$30,(1/AK$31)^AK$29,TRUE))-(1-GAMMADIST((1/U68)^AK$29,AK$30,(1/AK$31)^AK$29,TRUE)) -> 0.001858221812 | AL69: 6.837600597e-08 | AM69: 0.0007703200293 | AN69: 1.17503554e-08 | AO69: -0.0225045042 | AP69: -0.0250045042 | AQ69: 29 | AR69: 0.04016620499 | AS69: 0.04347794534 | AT69: 0.04703050789 | AU69: 0.04048674033 | AV69: 0.04295896084 | AW69: 0.04399162933 | AX69: 0.04422903239 | AY69: =(GAMMADIST($U69^$AI$21,$AI$22,$AI$23^$AI$21,TRUE)-GAMMADIST($U68^$AI$21,$AI$22,$AI$23^$AI$21,TRUE)) -> 1.355018067e-07
A70: 1956-03-15T07:30:00 | B70: 2.99 | C70: 0.08 | D70: 0.08 | E70: 0.08001385042 | F70: 0.02712030622 | G70: 0.02712030622 | H70: 0.02712481042 | I70: -3.509896799 | J70: 1429.453769 | K70: 126.8956524 | L70: 0.08895760888 | M70: 3.982907949e-10 | N70: 17.25 | O70: 17 | P70: 0 | Q70: 0 | S70: 0.0009855711107 | U70: 0.1725 | V70: 0.17 | W70: 0 | X70: 0 | Y70: 1.684333701e-06 | Z70: 5.617782209e-14 | AA70: 1.282021289e-08 | AB70: 3.254611061e-18 | AC70: 5.162115668e-05 | AD70: 5.27672043e-11 | AE70: 1.020561e-09 | AF70: 0.0002270205509 | AG70: 0.002122616468 | AH70: 8.921783504e-08 | AI70: 0 | AJ70: 0 | AK70: 0.00170283525 | AL70: 5.741877007e-08 | AM70: 0.000705905017 | AN70: 9.867364218e-09 | AO70: -0.0175045042 | AP70: -0.0200045042 | AQ70: 29 | AR70: 0.04016620499 | AS70: 0.04739928103 | AT70: 0.05333489844 | AU70: 0.04808768155 | AV70: 0.04957533839 | AW70: 0.05007816568 | AX70: 0.05130001962 | AY70: 5.824924487e-08
A71: 1956-04-14T18:00:00 | B71: 3.14 | C71: 0.15 | D71: 0.15 | E71: 0.1500138504 | F71: 0.04894941252 | G71: 0.04894941252 | H71: 0.04895391672 | I71: -3.460947386 | J71: 1086.502332 | K71: 105.6867254 | L71: 0.05635372409 | M71: 1.37633663e-08 | N71: 17.75 | O71: 17.5 | P71: 0 | Q71: 0 | S71: 0.0007958431912 | U71: 0.1775 | V71: 0.175 | W71: 0 | X71: 0 | Y71: 8.687680384e-07 | Z71: 1.494570108e-14 | AA71: 4.886937299e-09 | AB71: 4.729139835e-19 | AC71: 3.930666984e-05 | AD71: 3.059434246e-11 | AE71: 6.70774316e-10 | AF71: 0.0001840491863 | AG71: 0.00199858188 | AH71: 7.909563428e-08 | AI71: 0 | AJ71: 0 | AK71: 0.001563271958 | AL71: 4.839245972e-08 | AM71: 0.0006480494918 | AN71: 8.316200868e-09 | AO71: -0.0125045042 | AP71: -0.0150045042 | AQ71: 37 | AR71: 0.0512465374 | AS71: 0.05069213131 | AT71: 0.05881699942 | AU71: 0.05639232606 | AV71: 0.05684927193 | AW71: 0.05600215991 | AX71: 0.05786308825 | AY71: 2.44046594e-08
A72: 1956-05-15T04:30:00 | B72: 3.06 | C72: -0.08 | D72: 0.08 | E72: 0.07998614958 | F72: -0.02580788396 | G72: 0.02580788396 | H72: 0.02580337975 | I72: -3.48675527 | J72: 1259.646934 | K72: 116.6359836 | L72: 0.07199951933 | M72: 2.951614016e-10 | N72: 18.25 | O72: 18 | P72: 0 | Q72: 0 | S72: 0.0006434671207 | U72: 0.1825 | V72: 0.18 | W72: 0 | X72: 0 | Y72: 4.395874593e-07 | Z72: 3.826477909e-15 | AA72: 1.811492734e-09 | AB72: 6.498031532e-20 | AC72: 2.992954119e-05 | AD72: 1.773816704e-11 | AE72: 4.407342816e-10 | AF72: 0.0001491880733 | AG72: 0.001884825962 | AH72: 7.034789919e-08 | AI72: 0 | AJ72: 0 | AK72: 0.001437635993 | AL72: 4.092667819e-08 | AM72: 0.0005959674961 | AN72: 7.033212997e-09 | AO72: -0.007504504204 | AP72: -0.0100045042 | AQ72: 47 | AR72: 0.06509695291 | AS72: 0.0531833151 | AT72: 0.06307450545 | AU72: 0.06458653659 | AV72: 0.06329841094 | AW72: 0.06188262879 | AX72: 0.06324591432 | AY72: 9.965099745e-09
A73: 1956-06-14T15:00:00 | B73: 3 | C73: -0.06 | D73: 0.06 | E73: 0.05998614958 | F73: -0.0198026273 | G73: 0.0198026273 | H73: 0.01979812309 | I73: -3.506557897 | J73: 1404.089312 | K73: 125.3900731 | L73: 0.08632339782 | M73: 6.02204672e-11 | N73: 18.75 | O73: 18.5 | P73: 0 | Q73: 0 | S73: 0.0005209661982 | U73: 0.1875 | V73: 0.185 | W73: 0 | X73: 0 | Y73: 2.18198871e-07 | Z73: 9.427870751e-16 | AA73: 6.529721208e-10 | AB73: 8.443021595e-21 | AC73: 2.2789263e-05 | AD73: 1.028416848e-11 | AE73: 2.894994255e-10 | AF73: 0.0001209120382 | AG73: 0.001780258904 | AH73: 6.275884682e-08 | AI73: 0 | AJ73: 0 | AK73: 0.001324291948 | AL73: 3.472770618e-08 | AM73: 0.0005489810772 | AN73: 5.967925209e-09 | AO73: -0.002504504204 | AP73: -0.005004504204 | AQ73: 43 | AR73: 0.0595567867 | AS73: 0.05473641085 | AT73: 0.06577554348 | AU73: 0.06957891854 | AV73: 0.06394913125 | AW73: 0.06893422775 | AX73: 0.06679770904 | AY73: 3.965579087e-09
A74: 1956-07-15T01:30:00 | B74: 3.08 | C74: 0.08 | D74: 0.08 | E74: 0.08001385042 | F74: 0.02631730832 | G74: 0.02631730832 | H74: 0.02632181252 | I74: -3.480240589 | J74: 1214.344899 | K74: 113.8224777 | L74: 0.06774488518 | M74: 3.325789433e-10 | N74: 19.25 | O74: 19 | P74: 0 | Q74: 0 | S74: 0.0004223739624 | U74: 0.1925 | V74: 0.19 | W74: 0 | X74: 0 | Y74: 1.062491419e-07 | Z74: 2.235421814e-16 | AA74: 2.288815804e-10 | AB74: 1.037361937e-21 | AC74: 1.735232888e-05 | AD74: 5.962441932e-12 | AE74: 1.901060597e-10 | AF74: 9.798140648e-05 | AG74: 0.00168393039 | AH74: 5.615092198e-08 | AI74: 0 | AJ74: 0 | AK74: 0.001221824694 | AL74: 2.95614967e-08 | AM74: 0.0005065035984 | AN74: 5.080116736e-09 | AO74: 0.002495495796 | AP74: -4.504204136e-06 | AQ74: 64 | AR74: 0.08864265928 | AS74: 0.05526412359 | AT74: 0.06670135277 | AU74: =GAMMADIST(AO74-$F$7,AF$30,AF$31,TRUE) -> 0.06023329506 | AV74: =AM$31*GAMMADIST((AO74-$F$7)^AI$29,AI$30,AI$31^AI$29,TRUE)+(1-AM$31)*(1-GAMMADIST(1/(AO74-$F$7)^AK$29,AK$30,1/AK$31^AK$29,TRUE)) -> 0.08678551129 | AW74: =GAMMADIST(ABS(AO74-$F$7)^AI$21,AI$22,AI$23^AI$21,TRUE) -> 0.08261132254 | AX74: 0.06804042189 | AY74: 1.537933891e-09 | AZ74: make AR74 this color
A75: 1956-08-14T12:00:00 | B75: 3.22 | C75: 0.14 | D75: 0.14 | E75: 0.1400138504 | F75: 0.04445176257 | G75: 0.04445176257 | H75: 0.04445626677 | I75: -3.435788826 | J75: 933.6622144 | K75: 95.52708425 | L75: 0.04393743694 | M75: 7.71965585e-09 | N75: 19.75 | O75: 19.5 | P75: 0 | Q75: 0 | S75: 0.0003429296339 | U75: 0.1975 | V75: 0.195 | W75: 0 | X75: 0 | Y75: 5.075327536e-08 | Z75: 5.100782099e-17 | AA75: 7.801626012e-11 | AB75: 1.20525482e-22 | AC75: 1.321244464e-05 | AD75: 3.456805807e-12 | AE75: 1.248038462e-10 | AF75: 7.93888798e-05 | AG75: 0.001595008839 | AH75: 5.037729101e-08 | AI75: 0 | AJ75: 0 | AK75: 0.001129006012 | AL75: 2.524068465e-08 | AM75: 0.0004680259045 | AN75: 4.337589055e-09 | AO75: 0.007495495796 | AP75: 0.004995495796 | AQ75: 47 | AR75: 0.06509695291 | AS75: 0.05473641085 | AT75: 0.06577554348 | AU75: 0.06957891854 | AV75: 0.06394913125 | AW75: 0.06893422775 | AX75: 0.06679770904 | AY75: 5.812529347e-10
A76: 1956-09-13T22:30:00 | B76: 3.28 | C76: 0.06 | D76: 0.06 | E76: 0.06001385042 | F76: 0.01846206284 | G76: 0.01846206284 | H76: 0.01846656704 | I76: -3.417326764 | J76: 831.177642 | K76: 88.40209726 | L76: 0.03635494625 | M76: 3.965673933e-11 | N76: 20.25 | O76: 20 | P76: 0 | Q76: 0 | S76: 0.0002788338427 | U76: 0.2025 | V76: 0.2 | W76: 1 | X76: 0.001385041551 | Y76: 2.378309727e-08 | Z76: 3.798562808e-08 | AA76: 2.585931469e-11 | AB76: 3.798693123e-08 | AC76: 1.006020909e-05 | AD76: 3.74371028e-08 | AE76: 3.45408991e-08 | AF76: 6.431621841e-05 | AG76: 0.00151276413 | AH76: 3.230308364e-10 | AI76: 0 | AJ76: 3.798693265e-08 | AK76: 0.001044766813 | AL76: 2.292809851e-09 | AM76: 0.0004331048085 | AN76: 1.794422895e-08 | AO76: 0.0124954958 | AP76: 0.009995495796 | AQ76: 53 | AR76: 0.07340720222 | AS76: 0.0531833151 | AT76: 0.06307450545 | AU76: 0.06458653659 | AV76: 0.06329841094 | AW76: 0.06188262879 | AX76: 0.06324591432 | AY76: 2.140817523e-10
A77: 1956-10-14T09:00:00 | B77: 3.26 | C77: -0.02 | D77: 0.02 | E77: 0.01998614958 | F77: -0.006116227017 | G77: 0.006116227017 | H77: 0.006111722813 | I77: -3.423442991 | J77: 864.2408469 | K77: 90.73117304 | L77: 0.03873535693 | M77: 5.21172985e-14 | N77: 20.75 | O77: 20.5 | P77: 0 | Q77: 0 | S77: 0.0002270532896 | U77: 0.2075 | V77: 0.205 | W77: 0 | X77: 0 | Y77: 1.093297675e-08 | Z77: 2.366930308e-18 | AA77: 8.334888335e-12 | AB77: 1.375650764e-24 | AC77: 7.660015139e-06 | AD77: 1.161897662e-12 | AE77: 5.374850369e-11 | AF77: 5.209893892e-05 | AG77: 0.001436553194 | AH77: 4.08650511e-08 | AI77: 0 | AJ77: 0 | AK77: 0.0009681739423 | AL77: 1.856159966e-08 | AM77: 0.000401353474 | AN77: 3.189794279e-09 | AO77: 0.0174954958 | AP77: 0.0149954958 | AQ77: 36 | AR77: 0.04986149584 | AS77: 0.05069213131 | AT77: 0.05881699942 | AU77: 0.05639232606 | AV77: 0.05684927193 | AW77: 0.05600215991 | AX77: 0.05786308825 | AY77: 7.683731429e-11
A78: 1956-11-13T19:30:00 | B78: 3.37 | C78: 0.11 | D78: 0.11 | E78: 0.1100138504 | F78: 0.03318554899 | G78: 0.03318554899 | H78: 0.03319005319 | I78: -3.390257442 | J78: 695.1305921 | K78: 78.47131575 | L78: 0.02722929329 | M78: 1.336742298e-09 | N78: 21.25 | O78: 21 | P78: 0 | Q78: 0 | S78: 0.0001851648785 | U78: 0.2125 | V78: 0.21 | W78: 0 | X78: 0 | Y78: 4.930308162e-09 | Z78: 4.813453182e-19 | AA78: 2.612576822e-12 | AB78: 1.351595574e-25 | AC78: 5.832454114e-06 | AD78: 6.73614277e-13 | AE78: 3.526007975e-11 | AF78: 4.219755949e-05 | AG78: 0.001365807915 | AH78: 3.693923291e-08 | AI78: 0 | AJ78: 0 | AK78: 0.0008984107244 | AL78: 1.598300653e-08 | AM78: 0.0003724333506 | AN78: 2.74666536e-09 | AO78: 0.0224954958 | AP78: 0.0199954958 | AQ78: 40 | AR78: 0.05540166205 | AS78: 0.04739928103 | AT78: 0.05333489844 | AU78: 0.04808768155 | AV78: 0.04957533839 | AW78: 0.05007816568 | AX78: 0.05130001962 | AY78: 2.687405853e-11
A79: 1956-12-14T06:00:00 | B79: 3.45 | C79: 0.08 | D79: 0.08 | E79: 0.08001385042 | F79: 0.02346148668 | G79: 0.02346148668 | H79: 0.02346599088 | I79: -3.366795955 | J79: 590.2929711 | K79: 70.36851854 | L79: 0.02094703222 | M79: 1.66968054e-10 | N79: 21.75 | O79: 21.5 | P79: 0 | Q79: 0 | S79: 0.0001512315371 | U79: 0.2175 | V79: 0.215 | W79: 0 | X79: 0 | Y79: 2.181099079e-09 | Z79: 9.420184541e-20 | AA79: 7.962519533e-13 | AB79: 1.255479551e-26 | AC79: 4.440913709e-06 | AD79: 3.905290013e-13 | AE79: 2.312624178e-11 | AF79: 3.417418923e-05 | AG79: 0.001300024947 | AH79: 3.346663097e-08 | AI79: 0 | AJ79: 0 | AK79: 0.0008347605963 | AL79: 1.379851987e-08 | AM79: 0.0003460473895 | AN79: 2.371263282e-09 | AO79: 0.0274954958 | AP79: 0.0249954958 | AQ79: 35 | AR79: 0.04847645429 | AS79: 0.04347794534 | AT79: 0.04703050789 | AU79: 0.04048674033 | AV79: 0.04295896084 | AW79: 0.04399162933 | AX79: 0.04422903239 | AY79: 9.159228931e-12
A80: 1957-01-13T16:30:00 | B80: 3.41 | C80: -0.04 | D80: 0.04 | E80: 0.03998614958 | F80: -0.01166193975 | G80: 0.01166193975 | H80: 0.01165743554 | I80: -3.378457895 | J80: 640.9273591 | K80: 74.33714435 | L80: 0.02389834546 | M80: 2.509678771e-12 | N80: 22.25 | O80: 22 | P80: 0 | Q80: 0 | S80: 0.0001237033867 | U80: 0.2225 | V80: 0.22 | W80: 0 | X80: 0 | Y80: 9.46547285e-10 | Z80: 1.774161906e-20 | AA80: 2.36033415e-13 | AB80: 1.103203426e-27 | AC80: 3.381370862e-06 | AD80: 2.264092853e-13 | AE80: 1.516477846e-11 | AF80: 2.767347669e-05 | AG80: 0.001238757101 | AH80: 3.038651795e-08 | AI80: 0 | AJ80: 0 | AK80: 0.0007765932901 | AL80: 1.194251759e-08 | AM80: 0.0003219343149 | AN80: 2.052310953e-09 | AO80: 0.0324954958 | AP80: 0.0299954958 | AQ80: 24 | AR80: 0.03324099723 | AS80: 0.03912301563 | AT80: 0.04032807053 | AU80: 0.03381550616 | AV80: 0.0369780635 | AW80: 0.03786545755 | AX80: 0.03722397509 | AY80: 3.041900065e-12
A81: 1957-02-13T03:00:00 | B81: 3.3 | C81: -0.11 | D81: 0.11 | E81: 0.1099861496 | F81: -0.03278982282 | G81: 0.03278982282 | H81: 0.03278531862 | I81: -3.411247718 | J81: 799.1753073 | K81: 86.11815254 | L81: 0.03411106812 | M81: 1.241870903e-09 | N81: 22.75 | O81: 22.5 | P81: 0 | Q81: 0 | S81: 0.0001013391369 | U81: 0.2275 | V81: 0.225 | W81: 0 | X81: 0 | Y81: 4.029718781e-10 | Z81: 3.215570981e-21 | AA81: 6.794564911e-14 | AB81: 9.141804421e-29 | AC81: 2.574618421e-06 | AD81: 1.312605943e-13 | AE81: 9.942151964e-12 | AF81: 2.240711213e-05 | AG81: 0.001181606033 | AH81: 2.764738254e-08 | AI81: 0 | AJ81: 0 | AK81: 0.0007233531301 | AL81: 1.036118319e-08 | AM81: 0.0002998637735 | AN81: 1.780560052e-09 | AO81: 0.0374954958 | AP81: 0.0349954958 | AQ81: 24 | AR81: 0.03324099723 | AS81: 0.03453517684 | AT81: 0.03362751582 | AU81: 0.02808857981 | AV81: 0.03127055894 | AW81: 0.03189004761 | AX81: 0.03069769022 | AY81: 9.843237336e-13
A82: 1957-03-15T13:30:00 | B82: 3.32 | C82: 0.02 | D82: 0.02 | E82: 0.02001385042 | F82: 0.006042314456 | G82: 0.006042314456 | H82: 0.00604681866 | I82: -3.405205403 | J82: 768.206435 | K82: 83.87875208 | L82: 0.03199632293 | M82: 4.888342958e-14 | N82: 23.25 | O82: 23 | P82: 0 | Q82: 0 | S82: 8.314358245e-05 | U82: 0.2325 | V82: 0.23 | W82: 0 | X82: 0 | Y82: 1.682958217e-10 | Z82: 5.608610616e-22 | AA82: 1.909583602e-14 | AB82: 7.220810959e-30 | AC82: 1.960345544e-06 | AD82: 7.609811193e-14 | AE82: 6.516911977e-12 | AF82: 1.814122528e-05 | AG82: 0.001128216015 | AH82: 2.520537381e-08 | AI82: 0 | AJ82: 0 | AK82: 0.000674549091 | AL82: 9.010227251e-09 | AM82: 0.000279632212 | AN82: 1.548399485e-09 | AO82: 0.0424954958 | AP82: 0.0399954958 | AQ82: 19 | AR82: 0.02631578947 | AS82: 0.02990591483 | AT82: 0.02726727133 | AU82: 0.02323802711 | AV82: 0.02554181493 | AW82: 0.02625603482 | AX82: 0.0248938399 | AY82: 3.104183577e-13
A83: 1957-04-15 | B83: 3.4 | C83: 0.08 | D83: 0.08 | E83: 0.08001385042 | F83: 0.02381064869 | G83: 0.02381064869 | H83: 0.0238151529 | I83: -3.381394754 | J83: 654.1359733 | K83: 75.35499097 | L83: 0.02469380528 | M83: 1.824400761e-10 | N83: 23.75 | O83: 23.5 | P83: 0 | Q83: 0 | S83: 6.831790483e-05 | U83: 0.2375 | V83: 0.235 | W83: 0 | X83: 0 | Y83: 6.89501789e-11 | Z83: 9.414113209e-23 | AA83: 5.329070518e-15 | AB83: 5.623562889e-31 | AC83: 1.492629953e-06 | AD83: 4.411770649e-14 | AE83: 4.270945315e-12 | AF83: 1.468614103e-05 | AG83: 0.00107826861 | AH83: 2.302303356e-08 | AI83: 0 | AJ83: 0 | AK83: 0.0006297463249 | AL83: 7.853077897e-09 | AM83: 0.0002610593657 | AN83: 1.349544404e-09 | AO83: 0.0474954958 | AP83: 0.0449954958 | AQ83: 9 | AR83: 0.01246537396 | AS83: 0.02540496163 | AT83: 0.02150047769 | AU83: 0.01916631502 | AV83: 0.0197729401 | AW83: 0.02112092904 | AX83: 0.0199136799 | AY83: 9.525713551e-14
A84: 1957-05-15T10:30:00 | B84: 3.49 | C84: 0.09 | D84: 0.09 | E84: 0.09001385042 | F84: 0.02612630459 | G84: 0.02612630459 | H84: 0.0261308088 | I84: -3.35526845 | J84: 543.0369163 | K84: 66.56095886 | L84: 0.01833468827 | M84: 3.183589861e-10 | N84: 24.25 | O84: 24 | P84: 0 | Q84: 0 | S84: 5.622014572e-05 | U84: 0.2425 | V84: 0.24 | W84: 0 | X84: 0 | Y84: 2.771183283e-11 | Z84: 1.520684512e-23 | AA84: 1.33226763e-15 | AB84: 3.514726805e-32 | AC84: 1.136505381e-06 | AD84: 2.557711845e-14 | AE84: 2.798531534e-12 | AF84: 1.188805461e-05 | AG84: 0.001031478102 | AH84: 2.106825891e-08 | AI84: 0 | AJ84: 0 | AK84: 0.0005885589216 | AL84: 6.859437707e-09 | AM84: 0.0002439852567 | AN84: 1.178788227e-09 | AO84: 0.0524954958 | AP84: 0.0499954958 | AQ84: 8 | AR84: 0.01108033241 | AS84: 0.02117122724 | AT84: 0.01648595292 | AU84: 0.01576993993 | AV84: 0.01430691009 | AW84: 0.01659309101 | AX84: 0.01575664601 | AY84: 2.864375404e-14
A85: 1957-06-14T21:00:00 | B85: 3.65 | C85: 0.16 | D85: 0.16 | E85: 0.1600138504 | F85: 0.04482543138 | G85: 0.04482543138 | H85: 0.04482993558 | I85: -3.310443018 | J85: 384.2519564 | K85: 52.85394295 | L85: 0.01059893241 | M85: 8.117245648e-09 | N85: 24.75 | O85: 24.5 | P85: 0 | Q85: 0 | S85: 4.633375649e-05 | U85: 0.2475 | V85: 0.245 | W85: 0 | X85: 0 | Y85: 1.092614887e-11 | Z85: 2.363974836e-24 | AA85: 2.220446049e-16 | AB85: 9.763130015e-34 | AC85: 8.653478203e-07 | AD85: 1.482825446e-14 | AE85: 1.833426786e-12 | AF85: 9.622268582e-06 | AG85: 0.0009875875685 | AH85: 1.931344961e-08 | AI85: 0 | AJ85: 0 | AK85: 0.0005506437034 | AL85: 6.004128476e-09 | AM85: 0.0002282676218 | AN85: 1.031804102e-09 | AO85: 0.0574954958 | AP85: 0.0549954958 | AQ85: 10 | AR85: 0.01385041551 | AS85: 0.01730770795 | AT85: 0.01229247963 | AU85: 0.01295013743 | AV85: 0.009719335878 | AW85: 0.01272734743 | AX85: 0.01235991294 | AY85: 8.215650382e-15
A86: 1957-07-15T07:30:00 | B86: 3.72 | C86: 0.07 | D86: 0.07 | E86: 0.07001385042 | F86: 0.01899650069 | G86: 0.01899650069 | H86: 0.01900100489 | I86: -3.291446518 | J86: 328.1504475 | K86: 47.57535094 | L86: 0.008268856559 | M86: 4.706081229e-11 | N86: 25.25 | O86: 25 | P86: 0 | Q86: 0 | S86: =1-LOGNORMDIST(N85,S$31,S$32) -> 0.0002283704166 | U86: 0.2525 | V86: 0.25 | W86: 1 | X86: 0.001385041551 | Y86: =2*( 1-NORMDIST($U85,Y$29,Y$30,TRUE)) -> 6.763700711e-12 | Z86: 3.798693228e-08 | AA86: =2*( 1-NORMDIST(U85,AA$29,AA$30,TRUE)) -> 2.220446049e-16 | AB86: 3.798693265e-08 | AC86: =2*(1-1/(1+EXP(-AC$30*U85))) -> 2.761586523e-06 | AD86: 3.7835602e-08 | AE86: 3.578264993e-08 | AF86: =(1-GAMMADIST(U85,AF$30,AF$31,TRUE)) -> 4.078568965e-05 | AG86: =1-(1-GAMMADIST(1/U85,AG$30,1/AG$31,TRUE)) -> 0.04175359171 | AH86: 3.226969985e-05 | AI86: =(1-GAMMADIST($U85^AI$29,AI$30,AI$31^AI$29,TRUE)) -> 0 | AJ86: 3.798693265e-08 | AK86: =1-(1-GAMMADIST((1/U85)^AK$29,AK$30,(1/AK$31)^AK$29,TRUE)) -> 0.0104604511 | AL86: 1.630951652e-06 | AM86: 0.004336347224 | AN86: 1.724793104e-07 | AO86: 0.0624954958 | AP86: 0.0599954958 | AQ86: 6 | AR86: 0.008310249307 | AS86: 0.01388030829 | AT86: 0.008913010367 | AU86: 0.01061743826 | AV86: 0.00646061139 | AW86: 0.009528857146 | AX86: 0.009629735719 | AY86: =(1-GAMMADIST($U85^$AI$21,$AI$22,$AI$23^$AI$21,TRUE)) -> 3.330669074e-15
A87: 1957-08-14T18:00:00 | B87: 3.75 | C87: 0.03 | D87: 0.03 | E87: 0.03001385042 | F87: 0.008032171697 | G87: 0.008032171697 | H87: 0.008036675901 | I87: -3.283414346 | J87: 306.2924697 | K87: 45.43852375 | L87: 0.007421318266 | M87: 2.694379268e-13 | U87: 0.2575 | AO87: 0.0674954958 | AP87: 0.0649954958 | AQ87: 4 | AR87: 0.005540166205 | AS87: 0.01092005157 | AT87: 0.006284471676 | AU87: 0.008693176389 | AV87: 0.004527463991 | AW87: 0.006962301527 | AX87: 0.007462960426
A88: 1957-09-14T04:30:00 | B88: 3.73 | C88: -0.02 | D88: 0.02 | E88: 0.01998614958 | F88: -0.005347606327 | G88: 0.005347606327 | H88: 0.005343102122 | I88: -3.288761952 | J88: 320.7246005 | K88: 46.854882 | L88: 0.007977056973 | M88: 2.326809614e-14 | U88: 0.2625 | AO88: 0.0724954958 | AP88: 0.0699954958 | AQ88: 5 | AR88: 0.006925207756 | AS88: 0.008427840044 | AT88: 0.004308960911 | AU88: 0.007109480666 | AV88: 0.003505539797 | AW88: 0.004963701322 | AX88: 0.0057600025
A89: 1957-10-14T15:00:00 | B89: 3.76 | C89: 0.03 | D89: 0.03 | E89: 0.03001385042 | F89: 0.008010723746 | G89: 0.008010723746 | H89: 0.00801522795 | I89: -3.280751229 | J89: 299.2819369 | K89: 44.74250932 | L89: 0.007156834565 | M89: 2.651522204e-13 | U89: 0.2675 | AO89: 0.0774954958 | AP89: 0.0749954958 | AQ89: 1 | AR89: 0.001385041551 | AS89: 0.006380781748 | AT89: 0.002873000657 | AU89: 0.005808540538 | AV89: 0.002926386769 | AW89: 0.003452566116 | AX89: 0.00443155039
A90: 1957-11-14T01:30:00 | B90: 3.61 | C90: -0.15 | D90: 0.15 | E90: 0.1499861496 | F90: -0.04071118506 | G90: 0.04071118506 | H90: 0.04070668085 | I90: -3.321462414 | J90: 419.7483331 | K90: 56.06080376 | L90: 0.01218480374 | M90: 4.549819352e-09 | U90: 0.2725 | AO90: 0.0824954958 | AP90: 0.0799954958 | AQ90: 5 | AR90: 0.006925207756 | AS90: 0.004739117749 | AT90: 0.001862765794 | AU90: 0.004741564084 | AV90: 0.002519859071 | AW90: 0.002342680435 | AX90: 0.003401165325
A91: 1957-12-14T12:00:00 | B91: 3.38 | C91: -0.23 | D91: 0.23 | E91: 0.2299861496 | F91: -0.06583206285 | G91: 0.06583206285 | H91: 0.06582755865 | I91: -3.387294476 | J91: 681.2344893 | K91: 77.42200572 | L91: 0.02635857237 | M91: 8.136666053e-08 | U91: 0.2775 | AO91: 0.0874954958 | AP91: 0.0849954958 | AQ91: 1 | AR91: 0.001385041551 | AS91: 0.003452924679 | AT91: 0.001174465077 | AU91: 0.003867650367 | AV91: 0.002191836039 | AW91: 0.001550516622 | AX91: 0.002605465221
A92: 1958-01-13T22:30:00 | B92: 3.27 | C92: -0.11 | D92: 0.11 | E92: 0.1099861496 | F92: -0.03308572459 | G92: 0.03308572459 | H92: 0.03308122038 | I92: -3.420380201 | J92: 847.5749016 | K92: 89.56095694 | L92: 0.03752760686 | M92: 1.310657253e-09 | U92: 0.2825 | AO92: 0.0924954958 | AP92: 0.0899954958 | AQ92: 3 | AR92: 0.004155124654 | AS92: 0.002467986038 | AT92: 0.0007200808292 | AU92: 0.003152691475 | AV92: 0.001916616189 | AW92: 0.001000909783 | AX92: 0.001993052426
A93: 1958-02-13T09:00:00 | B93: 3.31 | C93: 0.04 | D93: 0.04 | E93: 0.04001385042 | F93: 0.01215820448 | G93: 0.01215820448 | H93: 0.01216270868 | I93: -3.408221997 | J93: 783.5633804 | K93: 84.9929208 | L93: 0.03303800103 | M93: 3.237291664e-12 | U93: 0.2875 | AO93: 0.0974954958 | AP93: 0.0949954958 | AQ93: 2 | AR93: 0.002770083102 | AS93: 0.001730470785 | AT93: 0.0004293205131 | AU93: 0.002568360538 | AV93: 0.001683478291 | AW93: 0.0006301377936 | AX93: 0.001522911557
A94: 1958-03-15T19:30:00 | B94: 3.29 | C94: -0.02 | D94: 0.02 | E94: 0.01998614958 | F94: -0.006060624612 | G94: 0.006060624612 | H94: 0.006056120408 | I94: -3.414282621 | J94: 815.0455915 | K94: 87.25452028 | L94: 0.0352164124 | M94: 4.933634896e-14 | U94: 0.2925 | AO94: 0.1024954958 | AP94: 0.0999954958 | AQ94: 1 | AR94: 0.001385041551 | AS94: 0.001190287342 | AT94: 0.0002489093669 | AU94: 0.002091209073 | AV94: 0.00148486163 | AW94: 0.0003868731231 | AX94: 0.001162694841
A95: 1958-04-15T06:00:00 | B95: 3.17 | C95: -0.12 | D95: 0.12 | E95: 0.1199861496 | F95: -0.03715597689 | G95: 0.03715597689 | H95: 0.03715147268 | I95: -3.451438598 | J95: 1026.915891 | K95: 101.7864379 | L95: 0.05135651711 | M95: 2.629397243e-09 | U95: 0.2975 | AO95: 0.1074954958 | AP95: 0.1049954958 | AQ95: 0 | AR95: 0 | AS95: 0.0008031660077 | AT95: 0.0001403330641 | AU95: 0.001701878896 | AV95: 0.001314781051 | AW95: 0.0002316152728 | AX95: 0.0008871114681
A96: 1958-05-15T16:30:00 | B96: 3.17 | C96: 0 | D96: 0 | E96: 1.385041551e-05 | F96: 0 | G96: 0 | H96: 4.504204136e-06 | I96: -3.451438598 | J96: 1026.915891 | K96: 101.7864379 | L96: 0.05135651711 | M96: 8.35042136e-33 | U96: 0.3025 | AO96: 0.1124954958 | AP96: 0.1099954958 | AQ96: 0 | AR96: 0 | AS96: 0.000531648723 | AT96: 7.693746949e-05 | AU96: 0.001384424192 | AV96: 0.001168432181 | AW96: 0.0001352094218 | AX96: 0.0006765159628
A97: 1958-06-15T03:00:00 | B97: 3.23 | C97: 0.06 | D97: 0.06 | E97: 0.06001385042 | F97: 0.01875054935 | G97: 0.01875054935 | H97: 0.01875505355 | I97: -3.432688049 | J97: 915.8860756 | K97: 94.31070057 | L97: 0.04257916776 | M97: 4.352210085e-11 | U97: 0.3075 | AO97: 0.1174954958 | AP97: 0.1149954958 | AQ97: 1 | AR97: 0.001385041551 | AS97: 0.0003452313059 | AT97: 4.101803625e-05 | AU97: 0.001125734596 | AV97: 0.001041931767 | AW97: 7.696005548e-05 | AX97: 0.0005157221318
A98: 1958-07-15T13:30:00 | B98: 3.39 | C98: 0.16 | D98: 0.16 | E98: 0.1600138504 | F98: 0.04834778416 | G98: 0.04834778416 | H98: 0.04835228836 | I98: -3.384340265 | J98: 667.5706551 | K98: 76.38325448 | L98: 0.02551364848 | M98: 1.277915672e-08 | U98: 0.3125 | AO98: 0.1224954958 | AP98: 0.1199954958 | AQ98: 0 | AR98: 0 | AS98: 0.0002199183643 | AT98: 2.126526792e-05 | AU98: 0.0009150481755 | AV98: 0.0009321209588 | AW98: 4.270922425e-05 | AX98: 0.0003930337872
A99: 1958-08-15 | B99: 3.65 | C99: 0.26 | D99: 0.26 | E99: 0.2600138504 | F99: 0.0738972462 | G99: 0.0738972462 | H99: 0.07390175041 | I99: -3.310443018 | J99: =($B99-$B$7)^6 -> 384.2519564 | K99: =($B99-$B$7)^4 -> 52.85394295 | L99: =($I99-$I$7)^6 -> 0.01059893241 | M99: 1.629027254e-07 | U99: 0.3175 | AO99: 0.1274954958 | AP99: 0.1249954958 | AQ99: 1 | AR99: =AQ99/COUNTA(F$36:F$7001) -> 0.001385041551 | AS99: 0.0001374291121 | AT99: 1.072076633e-05 | AU99: 0.0007435428619 | AV99: 0.0008364145671 | AW99: 2.310769403e-05 | AX99: 0.0002994675717
A100: 1958-09-14T10:30:00 | B100: 3.8 | C100: 0.15 | D100: 0.15 | E100: 0.1500138504 | F100: 0.04027389914 | G100: 0.04027389914 | H100: 0.04027840334 | I100: =LN(B100/100) -> -3.270169119 | J100: 272.5615805 | K100: 42.03810132 | L100: 0.006182125465 | M100: 4.270055102e-09 | U100: 0.3225 | AO100: 0.1324954958 | AP100: 0.1299954958 | AQ100: 1 | AR100: 0.001385041551 | AS100: 8.424844442e-05 | AT100: 5.255810837e-06 | AU100: 0.000603995385 | AV100: 0.0007526847148 | AW100: 1.218855317e-05 | AX100: 0.0002281381617
A101: =A100+30.4375 -> 1958-10-14T21:00:00 | B101: 3.81 | C101: =B101-B100 -> 0.01 | D101: =ABS(C101) -> 0.01 | E101: =ABS(C101-C$7) -> 0.01001385042 | F101: 0.002628122406 | G101: =ABS(F101) -> 0.002628122406 | H101: =ABS(F101-F$7) -> 0.00263262661 | I101: -3.267540997 | J101: 266.2017936 | K101: 41.38160379 | L101: 0.005958036116 | M101: =(F101-F$7)^6 -> 3.329167151e-16 | U101: =U100+0.005 -> 0.3275 | AO101: =AO100+0.005 -> 0.1374954958 | AP101: =AP100+0.005 -> 0.1349954958 | AQ101: 1 | AR101: 0.001385041551 | AS101: =NORMDIST(AO101,F$7,F$9,TRUE)-NORMDIST(AO100,F$7,F$9,TRUE) -> 5.06653369e-05 | AT101: =NORMDIST(AO101,F$7,AA$30,TRUE)-NORMDIST(AO100,F$7,AA$30,TRUE) -> 2.505604338e-06 | AU101: =IF(AO101 <$F$7,0.5*(1-GAMMADIST(ABS(AO101-$F$7),AF$30,AF$31,TRUE))-0.5*(1-GAMMADIST(ABS(AO100-$F$7),AF$30,AF$31,TRUE)),0.5*(GAMMADIST(ABS(AO101-$F$7),AF$30,AF$31,TRUE))-0.5*( GAMMADIST(ABS(AO100-$F$7),AF$30,AF$31,TRUE))) -> 0.000490497676 | AV101: =AM$31*(IF(AO101 <$F$7,0.5*(1-GAMMADIST(ABS(AO101-$F$7)^AI$29,AI$30,AI$31^AI$29,TRUE))-0.5*(1-GAMMADIST(ABS(AO100-$F$7)^AI$29,AI$30,AI$31^AI$29,TRUE)),0.5*(GAMMADIST(ABS(AO101-$F$7)^AI$29,AI$30,AI$31^AI$29,TRUE))-0.5*( GAMMADIST(ABS(AO100-$F$7)^AI$29,AI$30,AI$31^AI$29,TRUE))))+(1-AM$31)*(IF(AO101 <$F$7,0.5*(GAMMADIST(1/ABS(AO101-$F$7)^AK$29,AK$30,1/AK$31^AK$29,TRUE))-0.5*(GAMMADIST(1/ABS(AO100-$F$7)^AK$29,AK$30,1/AK$31^AK$29,TRUE)),0.5*((1-GAMMADIST(1/ABS(AO101-$F$7)^AK$29,AK$30,1/AK$31^AK$29,TRUE)))-0.5*( (1-GAMMADIST(1/ABS(AO100-$F$7)^AK$29,AK$30,1/AK$31^AK$29,TRUE))))) -> 0.0006791703948 | AW101: =IF(AO101 <$F$7,0.5*(1-GAMMADIST(ABS(AO101-$F$7)^AI$21,AI$22,AI$23^AI$21,TRUE))-0.5*(1-GAMMADIST(ABS(AO100-$F$7)^AI$21,AI$22,AI$23^AI$21,TRUE)),0.5*(GAMMADIST(ABS(AO101-$F$7)^AI$21,AI$22,AI$23^AI$21,TRUE))-0.5*( GAMMADIST(ABS(AO100-$F$7)^AI$21,AI$22,AI$23^AI$21,TRUE))) -> 6.267458466e-06 | AX101: =1/(1+EXP(-$AC$30*(AO101-$F$7)))-1/(1+EXP(-$AC$30*(AO100-$F$7))) -> 0.0001737766385
A102: 1958-11-14T07:30:00 | B102: 3.76 | C102: -0.05 | D102: 0.05 | E102: 0.04998614958 | F102: =LN(B102/B101) -> -0.01321023174 | G102: 0.01321023174 | H102: 0.01320572753 | I102: -3.280751229 | J102: 299.2819369 | K102: 44.74250932 | L102: 0.007156834565 | M102: 5.303639478e-12 | U102: 0.3325 | AO102: 0.1424954958 | AP102: 0.1399954958 | AQ102: 0 | AR102: 0 | AS102: 2.988999622e-05 | AT102: 1.161566483e-06 | AU102: 0.0003982218263 | AV102: 0.0006144066906 | AW102: 3.141656295e-06 | AX102: 0.0001323558658
A103: 1958-12-14T18:00:00 | B103: 3.86 | C103: 0.1 | D103: 0.1 | E103: 0.1000138504 | F103: 0.02624822607 | G103: 0.02624822607 | H103: 0.02625273028 | I103: -3.254503003 | J103: 236.2264768 | K103: 38.21369636 | L103: 0.004943827868 | M103: 3.273760164e-10 | U103: 0.3375 | AO103: 0.1474954958 | AP103: 0.1449954958 | AQ103: 0 | AR103: 0 | AS103: 1.72984286e-05 | AT103: 5.236419208e-07 | AU103: 0.0003232258108 | AV103: 0.0005571690249 | AW103: 1.535107511e-06 | AX103: 0.0001008006353
A104: 1959-01-14T04:30:00 | B104: 3.95 | C104: 0.09 | D104: 0.09 | E104: 0.09001385042 | F104: 0.02304839544 | G104: 0.02304839544 | H104: 0.02305289964 | I104: -3.231454607 | J104: 189.3454167 | K104: 32.9738657 | L104: 0.003502115903 | M104: 1.50090553e-10 | U104: 0.3425 | AO104: 0.1524954958 | AP104: 0.1499954958 | AQ104: 0 | AR104: 0 | AS104: 9.820945499e-06 | AT104: 2.295532456e-07 | AU104: 0.0002622932697 | AV104: 0.0005064289723 | AW104: 7.311688134e-07 | AX104: 7.676428043e-05
A105: 1959-02-13T15:00:00 | B105: 3.96 | C105: 0.01 | D105: 0.01 | E105: 0.01001385042 | F105: 0.002528446353 | G105: 0.002528446353 | H105: 0.002532950557 | I105: -3.228926161 | J105: 184.6536727 | K105: 32.42689013 | L105: 0.003367971351 | M105: 2.640950586e-16 | U105: 0.3475 | AO105: 0.1574954958 | AP105: 0.1549954958 | AQ105: 0 | AR105: 0 | AS105: 5.469728734e-06 | AT105: 9.785682042e-08 | AU105: 0.0002128016324 | AV105: 0.0004613190271 | AW105: 3.394546679e-07 | AX105: 5.845702333e-05
A106: 1959-03-16T01:30:00 | B106: 3.99 | C106: 0.03 | D106: 0.03 | E106: 0.03001385042 | F106: 0.007547205635 | G106: 0.007547205635 | H106: 0.00755170984 | I106: -3.221378955 | J106: 171.1556737 | K106: 30.82673532 | L106: 0.002992754252 | M106: 1.854691868e-13 | U106: 0.3525 | AO106: 0.1624954958 | AP106: 0.1599954958 | AQ106: 0 | AR106: 0 | AS106: 2.988436977e-06 | AT106: 4.056554659e-08 | AU106: 0.0001726137504 | AV106: 0.0004211043543 | AW106: 1.536095952e-07 | AX106: 4.451436663e-05
A107: 1959-04-15T12:00:00 | B107: 4.06 | C107: 0.07 | D107: 0.07 | E107: 0.07001385042 | F107: 0.01739174271 | G107: 0.01739174271 | H107: 0.01739624692 | I107: -3.203987212 | J107: 142.8260211 | K107: 27.32361926 | L107: 0.002258756317 | M107: 2.771618041e-11 | U107: 0.3575 | AO107: 0.1674954958 | AP107: 0.1649954958 | AQ107: 0 | AR107: 0 | AS107: 1.601725997e-06 | AT107: 1.635242119e-08 | AU107: 0.0001399889736 | AV107: 0.0003851600146 | AW107: 6.775090333e-08 | AX107: 3.389635736e-05
A108: 1959-05-15T22:30:00 | B108: 4.13 | C108: 0.07 | D108: 0.07 | E108: 0.07001385042 | F108: 0.01709443336 | G108: 0.01709443336 | H108: 0.01709893756 | I108: -3.186892779 | J108: 118.516706 | K108: 24.12791059 | L108: 0.001690049184 | M108: 2.499279109e-11 | U108: 0.3625 | AO108: 0.1724954958 | AP108: 0.1699954958 | AQ108: 0 | AR108: 0 | AS108: 8.421668504e-07 | AT108: 6.410106446e-09 | AU108: 0.0001135102754 | AV108: 0.0003529525085 | AW108: 2.912462244e-08 | AX108: 2.581057834e-05
A109: 1959-06-15T09:00:00 | B109: 4.14 | C109: 0.01 | D109: 0.01 | E109: 0.01001385042 | F109: 0.002418380864 | G109: 0.002418380864 | H109: 0.002422885068 | I109: -3.184474398 | J109: 115.3441893 | K109: 23.69538743 | L109: 0.001620227762 | M109: 2.02300465e-16 | U109: 0.3675 | AO109: 0.1774954958 | AP109: 0.1749954958 | AQ109: 0 | AR109: 0 | AS109: 4.343840192e-07 | AT109: 2.44346865e-09 | AU109: 9.202459313e-05 | AV109: 0.0003240247459 | AW109: 1.22023297e-08 | AX109: 1.965333492e-05
A110: 1959-07-15T19:30:00 | B110: 4.16 | C110: 0.02 | D110: 0.02 | E110: 0.02001385042 | F110: 0.004819286436 | G110: 0.004819286436 | H110: 0.00482379064 | I110: -3.179655112 | J110: 109.2111389 | K110: 22.84781239 | L110: 0.001488240652 | M110: 1.259884413e-14 | U110: 0.3725 | AO110: 0.1824954958 | AP110: 0.1799954958 | AQ110: 0 | AR110: 0 | AS110: 2.197937297e-07 | AT110: 9.057463668e-10 | AU110: 7.459403666e-05 | AV110: 0.000297983748 | AW110: 4.982549873e-09 | AX110: 1.496477059e-05
A111: 1959-08-15T06:00:00 | B111: 4.15 | C111: -0.01 | D111: 0.01 | E111: 0.009986149584 | F111: -0.002406740031 | G111: 0.002406740031 | H111: 0.002402235826 | I111: -3.182061852 | J111: 112.2427603 | K111: 23.26870564 | L111: 0.001552986616 | M111: 1.921736496e-16 | U111: 0.3775 | AO111: 0.1874954958 | AP111: 0.1849954958 | AQ111: 0 | AR111: 0 | AS111: 1.090994355e-07 | AT111: 3.264860604e-10 | AU111: 6.045601912e-05 | AV111: 0.0002744905386 | AW111: 1.982789544e-09 | AX111: 1.13946315e-05
A112: 1959-09-14T16:30:00 | B112: 4.29 | C112: 0.14 | D112: 0.14 | E112: 0.1400138504 | F112: 0.0331783987 | G112: 0.0331783987 | H112: 0.0331829029 | I112: -3.148883453 | J112: 75.60104384 | K112: 17.87935557 | L112: 0.0008391851092 | M112: 1.335015344e-09 | U112: 0.3825 | AO112: 0.1924954958 | AP112: 0.1899954958 | AQ112: 0 | AR112: 0 | AS112: 5.312457096e-08 | AT112: 1.144407902e-10 | AU112: 4.899070324e-05 | AV112: 0.0002532517992 | AW112: 7.689669457e-10 | AX112: 8.67616444e-06
A113: 1959-10-15T03:00:00 | B113: 4.19 | C113: -0.1 | D113: 0.1 | E113: 0.09998614958 | F113: -0.02358599901 | G113: 0.02358599901 | H113: 0.0235814948 | I113: -3.172469452 | J113: 100.5225789 | K113: 21.61933915 | L113: 0.00130816028 | M113: 1.719602176e-10 | U113: 0.3875 | AP113: 0.1949954958 | AQ113: 0 | AR113: 0 | AS113: =1-NORMDIST(AO112,F$7,F$9,TRUE) -> 4.710646173e-08 | AT113: =1-NORMDIST(AO112,F$7,AA$30,TRUE) -> 5.797473612e-11 | AU113: =0.5*(1)-0.5*( GAMMADIST(ABS(AO112-$F$7),AF$30,AF$31,TRUE)) -> 0.0002086898769 | AV113: =AM$31*(0.5*(1)-0.5*( GAMMADIST(ABS(AO112-$F$7)^AI$29,AI$30,AI$31^AI$29,TRUE)))+(1-AM$31)*(0.5*((1))-0.5*( (1-GAMMADIST(1/ABS(AO112-$F$7)^AK$29,AK$30,1/AK$31^AK$29,TRUE)))) -> 0.003996027348 | AW113: =0.5*(1)-0.5*( GAMMADIST(ABS(AO112-$F$7)^AI$21,AI$22,AI$23^AI$21,TRUE)) -> 4.563386891e-10 | AX113: =1-1/(1+EXP(-$AC$30*(AO112-$F$7))) -> 2.768922059e-05
A114: 1959-11-14T13:30:00 | B114: 4.2 | C114: 0.01 | D114: 0.01 | E114: 0.01001385042 | F114: 0.002383791355 | G114: 0.002383791355 | H114: 0.002388295559 | I114: -3.170085661 | J114: 97.75773203 | K114: 21.22107653 | L114: 0.001252593454 | M114: 1.855788277e-16 | U114: 0.3925
A115: 1959-12-15 | B115: 4.33 | C115: 0.13 | D115: 0.13 | E115: 0.1300138504 | F115: 0.03048301673 | G115: 0.03048301673 | H115: 0.03048752093 | I115: -3.139602644 | J115: 67.19547324 | K115: 16.52824257 | L115: 0.000698072486 | M115: 8.030316615e-10 | U115: 0.3975
A116: 1960-01-14T10:30:00 | B116: 4.42 | C116: 0.09 | D116: 0.09 | E116: 0.09001385042 | F116: 0.02057215408 | G116: 0.02057215408 | H116: 0.02057665828 | I116: -3.11903049 | J116: 51.09202193 | K116: 13.76898922 | L116: 0.0004543594958 | M116: 7.590127501e-11 | U116: 0.4025
A117: 1960-02-13T21:00:00 | B117: 4.28 | C117: -0.14 | D117: 0.14 | E117: 0.1399861496 | F117: -0.0321866865 | G117: 0.0321866865 | H117: 0.03218218229 | I117: -3.151217176 | J117: 77.8339641 | K117: 18.22969628 | L117: 0.0008781796724 | M117: 1.110945983e-09 | U117: 0.4075
A118: 1960-03-15T07:30:00 | B118: 4.14 | C118: -0.14 | D118: 0.14 | E118: 0.1399861496 | F118: -0.03325722176 | G118: 0.03325722176 | H118: 0.03325271755 | I118: -3.184474398 | J118: 115.3441893 | K118: 23.69538743 | L118: 0.001620227762 | M118: 1.351956944e-09 | U118: 0.4125
A119: 1960-04-14T18:00:00 | B119: 4.23 | C119: 0.09 | D119: 0.09 | E119: 0.09001385042 | F119: 0.02150620522 | G119: 0.02150620522 | H119: 0.02151070943 | I119: -3.162968193 | J119: 89.84048278 | K119: 20.05925125 | L119: 0.001098248058 | M119: 9.906686097e-11 | U119: 0.4175
A120: 1960-05-15T04:30:00 | B120: 4.2 | C120: -0.03 | D120: 0.03 | E120: 0.02998614958 | F120: -0.007117467769 | G120: 0.007117467769 | H120: 0.007112963565 | I120: -3.170085661 | J120: 97.75773203 | K120: 21.22107653 | L120: 0.001252593454 | M120: 1.2951006e-13 | U120: 0.4225
A121: 1960-06-14T15:00:00 | B121: 4.04 | C121: -0.16 | D121: 0.16 | E121: 0.1599861496 | F121: -0.03883983332 | G121: 0.03883983332 | H121: 0.03883532911 | I121: -3.208925494 | J121: 150.4883096 | K121: 28.29231659 | L121: 0.002449933668 | M121: 3.430535673e-09 | U121: 0.4275
A122: 1960-07-15T01:30:00 | B122: 3.91 | C122: -0.13 | D122: 0.13 | E122: 0.1299861496 | F122: -0.03270731798 | G122: 0.03270731798 | H122: 0.03270281377 | I122: -3.241632812 | J122: 209.1183463 | K122: 35.23125312 | L122: 0.004088046292 | M122: 1.223237334e-09 | U122: 0.4325
A123: 1960-08-14T12:00:00 | B123: 3.84 | C123: -0.07 | D123: 0.07 | E123: 0.06998614958 | F123: -0.0180650074 | G123: 0.0180650074 | H123: 0.01806050319 | I123: -3.259697819 | J123: 247.8595509 | K123: 39.45818509 | L123: 0.005329116901 | M123: 3.470396347e-11 | U123: 0.4375
A124: 1960-09-13T22:30:00 | B124: 3.86 | C124: 0.02 | D124: 0.02 | E124: 0.02001385042 | F124: 0.005194816877 | G124: 0.005194816877 | H124: 0.005199321081 | I124: -3.254503003 | J124: 236.2264768 | K124: 38.21369636 | L124: 0.004943827868 | M124: 1.975512706e-14 | U124: 0.4425
A125: 1960-10-14T09:00:00 | B125: 3.92 | C125: 0.06 | D125: 0.06 | E125: 0.06001385042 | F125: 0.01542447033 | G125: 0.01542447033 | H125: 0.01542897453 | I125: -3.239078532 | J125: 204.0208558 | K125: 34.65636774 | L125: 0.003933846227 | M125: 1.349032376e-11 | U125: 0.4475
A126: 1960-11-13T19:30:00 | B126: 3.96 | C126: 0.04 | D126: 0.04 | E126: 0.04001385042 | F126: 0.01015237146 | G126: 0.01015237146 | H126: 0.01015687567 | I126: -3.228926161 | J126: 184.6536727 | K126: 32.42689013 | L126: 0.003367971351 | M126: 1.097895025e-12 | U126: 0.4525
A127: 1960-12-14T06:00:00 | B127: 3.91 | C127: -0.05 | D127: 0.05 | E127: 0.04998614958 | F127: -0.01270665127 | G127: 0.01270665127 | H127: 0.01270214706 | I127: -3.241632812 | J127: 209.1183463 | K127: 35.23125312 | L127: 0.004088046292 | M127: 4.200130846e-12 | U127: 0.4575
A128: 1961-01-13T16:30:00 | B128: 3.9 | C128: -0.01 | D128: 0.01 | E128: 0.009986149584 | F128: -0.002560820862 | G128: 0.002560820862 | H128: 0.002556316658 | I128: -3.244193633 | J128: 214.3215323 | K128: 35.81326122 | L128: 0.004247664997 | M128: 2.790537737e-16 | U128: 0.4625
A129: 1961-02-13T03:00:00 | B129: 3.84 | C129: -0.06 | D129: 0.06 | E129: 0.05998614958 | F129: -0.01550418654 | G129: 0.01550418654 | H129: 0.01549968233 | I129: -3.259697819 | J129: 247.8595509 | K129: 39.45818509 | L129: 0.005329116901 | M129: 1.386553987e-11 | U129: 0.4675
A130: 1961-03-15T13:30:00 | B130: 3.81 | C130: -0.03 | D130: 0.03 | E130: 0.02998614958 | F130: -0.007843177461 | G130: 0.007843177461 | H130: 0.007838673257 | I130: -3.267540997 | J130: 266.2017936 | K130: 41.38160379 | L130: 0.005958036116 | M130: 2.319825786e-13 | U130: 0.4725
A131: 1961-04-15 | B131: 3.81 | C131: 0 | D131: 0 | E131: 1.385041551e-05 | F131: 0 | G131: 0 | H131: 4.504204136e-06 | I131: -3.267540997 | J131: 266.2017936 | K131: 41.38160379 | L131: 0.005958036116 | M131: 8.35042136e-33 | U131: 0.4775
A132: 1961-05-15T10:30:00 | B132: 3.74 | C132: -0.07 | D132: 0.07 | E132: 0.06998614958 | F132: -0.01854357771 | G132: 0.01854357771 | H132: 0.01853907351 | I132: -3.286084575 | J132: 313.4393201 | K132: 46.14262716 | L132: 0.007694636231 | M132: 4.060019866e-11 | U132: 0.4825
A133: 1961-06-14T21:00:00 | B133: 3.89 | C133: 0.15 | D133: 0.15 | E133: 0.1500138504 | F133: 0.0393235462 | G133: 0.0393235462 | H133: 0.03932805041 | I133: -3.246761028 | J133: 219.6321599 | K133: 36.40245064 | L133: 0.004412873681 | M133: 3.700108908e-09 | U133: 0.4875
A134: 1961-07-15T07:30:00 | B134: 3.93 | C134: 0.04 | D134: 0.04 | E134: 0.04001385042 | F134: 0.01023026825 | G134: 0.01023026825 | H134: 0.01023477245 | I134: -3.23653076 | J134: 199.0273362 | K134: 34.08854675 | L134: 0.003784898277 | M134: 1.149394593e-12 | U134: 0.4925
A135: 1961-08-14T18:00:00 | B135: 4.04 | C135: 0.11 | D135: 0.11 | E135: 0.1100138504 | F135: 0.02760526609 | G135: 0.02760526609 | H135: 0.0276097703 | I135: -3.208925494 | J135: 150.4883096 | K135: 28.29231659 | L135: 0.002449933668 | M135: 4.429724949e-10 | U135: 0.4975
A136: 1961-09-14T04:30:00 | B136: 4.04 | C136: 0 | D136: 0 | E136: 1.385041551e-05 | F136: 0 | G136: 0 | H136: 4.504204136e-06 | I136: -3.208925494 | J136: 150.4883096 | K136: 28.29231659 | L136: 0.002449933668 | M136: 8.35042136e-33 | U136: 0.5025
A137: 1961-10-14T15:00:00 | B137: 4.01 | C137: -0.03 | D137: 0.03 | E137: 0.02998614958 | F137: -0.007453450655 | G137: 0.007453450655 | H137: 0.00744894645 | I137: -3.216378945 | J137: 162.6220837 | K137: 29.79337349 | L137: 0.002763897411 | M137: 1.708319559e-13 | U137: 0.5075
A138: 1961-11-14T01:30:00 | B138: 4 | C138: -0.01 | D138: 0.01 | E138: 0.009986149584 | F138: -0.002496880199 | G138: 0.002496880199 | H138: 0.002492375994 | I138: -3.218875825 | J138: 166.8434177 | K138: 30.3067513 | L138: 0.002876286574 | M138: 2.39707354e-16 | U138: 0.5125
A139: 1961-12-14T12:00:00 | B139: 4.07 | C139: 0.07 | D139: 0.07 | E139: 0.07001385042 | F139: 0.01734863833 | G139: 0.01734863833 | H139: 0.01735314254 | I139: -3.201527187 | J139: 139.1185573 | K139: 26.84870708 | L139: 0.002168263809 | M139: 2.730667394e-11 | U139: 0.5175
A140: 1962-01-13T22:30:00 | B140: 4.1 | C140: 0.03 | D140: 0.03 | E140: 0.03001385042 | F140: 0.007343974256 | G140: 0.007343974256 | H140: 0.00734847846 | I140: -3.194183212 | J140: 128.473846 | K140: 25.46106019 | L140: 0.001915885259 | M140: 1.574651869e-13 | U140: 0.5225
A141: 1962-02-13T09:00:00 | B141: 4.12 | C141: 0.02 | D141: 0.02 | E141: 0.02001385042 | F141: 0.004866189651 | G141: 0.004866189651 | H141: 0.004870693855 | I141: -3.189317023 | J141: 121.7616078 | K141: 24.56632819 | L141: 0.00176253856 | M141: 1.335195926e-14 | U141: 0.5275
A142: 1962-03-15T19:30:00 | B142: 4.04 | C142: -0.08 | D142: 0.08 | E142: 0.07998614958 | F142: -0.01960847139 | G142: 0.01960847139 | H142: 0.01960396718 | I142: -3.208925494 | J142: 150.4883096 | K142: 28.29231659 | L142: 0.002449933668 | M142: 5.676279882e-11 | U142: 0.5325
A143: 1962-04-15T06:00:00 | B143: 3.93 | C143: -0.11 | D143: 0.11 | E143: 0.1099861496 | F143: -0.02760526609 | G143: 0.02760526609 | H143: 0.02760076189 | I143: -3.23653076 | J143: 199.0273362 | K143: 34.08854675 | L143: 0.003784898277 | M143: 4.421060139e-10 | U143: 0.5375
A144: 1962-05-15T16:30:00 | B144: 3.92 | C144: -0.01 | D144: 0.01 | E144: 0.009986149584 | F144: -0.002547772079 | G144: 0.002547772079 | H144: 0.002543267875 | I144: -3.239078532 | J144: 204.0208558 | K144: 34.65636774 | L144: 0.003933846227 | M144: 2.706154782e-16 | U144: 0.5425
A145: 1962-06-15T03:00:00 | B145: 3.96 | C145: 0.04 | D145: 0.04 | E145: 0.04001385042 | F145: 0.01015237146 | G145: 0.01015237146 | H145: 0.01015687567 | I145: -3.228926161 | J145: 184.6536727 | K145: 32.42689013 | L145: 0.003367971351 | M145: 1.097895025e-12 | U145: 0.5475
A146: 1962-07-15T13:30:00 | B146: 4.05 | C146: 0.09 | D146: 0.09 | E146: 0.09001385042 | F146: 0.02247285585 | G146: 0.02247285585 | H146: 0.02247736006 | I146: -3.206453305 | J146: 146.6154574 | K146: 27.8048041 | L146: 0.00235260923 | M146: 1.289649858e-10 | U146: 0.5525
A147: 1962-08-15 | B147: 4.01 | C147: -0.04 | D147: 0.04 | E147: 0.03998614958 | F147: -0.0099256398 | G147: 0.0099256398 | H147: 0.009921135596 | I147: -3.216378945 | J147: 162.6220837 | K147: 29.79337349 | L147: 0.002763897411 | M147: 9.536045444e-13 | U147: 0.5575
A148: 1962-09-14T10:30:00 | B148: 4 | C148: -0.01 | D148: 0.01 | E148: 0.009986149584 | F148: -0.002496880199 | G148: 0.002496880199 | H148: 0.002492375994 | I148: -3.218875825 | J148: 166.8434177 | K148: 30.3067513 | L148: 0.002876286574 | M148: 2.39707354e-16 | U148: 0.5625
A149: 1962-10-14T21:00:00 | B149: 3.94 | C149: -0.06 | D149: 0.06 | E149: 0.05998614958 | F149: -0.01511363781 | G149: 0.01511363781 | H149: 0.01510913361 | I149: -3.233989463 | J149: 194.136084 | K149: 33.52773202 | L149: 0.003641040597 | M149: 1.189699747e-11 | U149: 0.5675
A150: 1962-11-14T07:30:00 | B150: 3.93 | C150: -0.01 | D150: 0.01 | E150: 0.009986149584 | F150: -0.002541297429 | G150: 0.002541297429 | H150: 0.002536793225 | I150: -3.23653076 | J150: 199.0273362 | K150: 34.08854675 | L150: 0.003784898277 | M150: 2.665081008e-16 | U150: 0.5725
A151: 1962-12-14T18:00:00 | B151: 3.92 | C151: -0.01 | D151: 0.01 | E151: 0.009986149584 | F151: -0.002547772079 | G151: 0.002547772079 | H151: 0.002543267875 | I151: -3.239078532 | J151: 204.0208558 | K151: 34.65636774 | L151: 0.003933846227 | M151: 2.706154782e-16 | U151: 0.5775
A152: 1963-01-14T04:30:00 | B152: 3.93 | C152: 0.01 | D152: 0.01 | E152: 0.01001385042 | F152: 0.002547772079 | G152: 0.002547772079 | H152: 0.002552276283 | I152: -3.23653076 | J152: 199.0273362 | K152: 34.08854675 | L152: 0.003784898277 | M152: 2.764178654e-16 | U152: 0.5825
A153: 1963-02-13T15:00:00 | B153: 3.97 | C153: 0.04 | D153: 0.04 | E153: 0.04001385042 | F153: 0.01012666882 | G153: 0.01012666882 | H153: 0.01013117302 | I153: -3.226404091 | J153: 180.0592112 | K153: 31.88674794 | L153: 0.003238458418 | M153: 1.081330354e-12 | U153: 0.5875
A154: 1963-03-16T01:30:00 | B154: 3.98 | C154: 0.01 | D154: 0.01 | E154: 0.01001385042 | F154: 0.002515724597 | G154: 0.002515724597 | H154: 0.002520228801 | I154: -3.223888367 | J154: 175.5604115 | K154: 31.35338197 | L154: 0.003113432791 | M154: 2.562358091e-16 | U154: 0.5925
A155: 1963-04-15T12:00:00 | B155: 4.03 | C155: 0.05 | D155: 0.05 | E155: 0.05001385042 | F155: 0.01248455666 | G155: 0.01248455666 | H155: 0.01248906087 | I155: -3.21140381 | J155: 154.4460404 | K155: 28.78621197 | L155: 0.002550844053 | M155: 3.794710885e-12 | U155: 0.5975
A156: 1963-05-15T22:30:00 | B156: 4.02 | C156: -0.01 | D156: 0.01 | E156: 0.009986149584 | F156: -0.002484473328 | G156: 0.002484473328 | H156: 0.002479969124 | I156: -3.213888283 | J156: 158.4901314 | K156: 29.2865457 | L156: 0.002655458199 | M156: 2.32636386e-16 | U156: 0.6025
A157: 1963-06-15T09:00:00 | B157: 4.02 | C157: 0 | D157: 0 | E157: 1.385041551e-05 | F157: 0 | G157: 0 | H157: 4.504204136e-06 | I157: -3.213888283 | J157: 158.4901314 | K157: 29.2865457 | L157: 0.002655458199 | M157: 8.35042136e-33 | U157: 0.6075
A158: 1963-07-15T19:30:00 | B158: 4.06 | C158: 0.04 | D158: 0.04 | E158: 0.04001385042 | F158: 0.009901070983 | G158: 0.009901070983 | H158: 0.009905575187 | I158: -3.203987212 | J158: 142.8260211 | K158: 27.32361926 | L158: 0.002258756317 | M158: 9.446657998e-13 | U158: 0.6125
A159: 1963-08-15T06:00:00 | B159: 4.03 | C159: -0.03 | D159: 0.03 | E159: 0.02998614958 | F159: -0.007416597655 | G159: 0.007416597655 | H159: 0.007412093451 | I159: -3.21140381 | J159: 154.4460404 | K159: 28.78621197 | L159: 0.002550844053 | M159: 1.658232098e-13 | U159: 0.6175
A160: 1963-09-14T16:30:00 | B160: 4.09 | C160: 0.06 | D160: 0.06 | E160: 0.06001385042 | F160: 0.0147785941 | G160: 0.0147785941 | H160: 0.0147830983 | I160: -3.196625216 | J160: 131.9438666 | K160: 25.91748194 | L160: 0.00199693153 | M160: 1.043741108e-11 | U160: 0.6225
A161: 1963-10-15T03:00:00 | B161: 4.12 | C161: 0.03 | D161: 0.03 | E161: 0.03001385042 | F161: 0.007308193307 | G161: 0.007308193307 | H161: 0.007312697511 | I161: -3.189317023 | J161: 121.7616078 | K161: 24.56632819 | L161: 0.00176253856 | M161: 1.52920481e-13 | U161: 0.6275
A162: 1963-11-14T13:30:00 | B162: 4.16 | C162: 0.04 | D162: 0.04 | E162: 0.04001385042 | F162: 0.009661910912 | G162: 0.009661910912 | H162: 0.009666415116 | I162: -3.179655112 | J162: 109.2111389 | K162: 22.84781239 | L162: 0.001488240652 | M162: 8.158168098e-13 | U162: 0.6325
A163: 1963-12-15 | B163: 4.19 | C163: 0.03 | D163: 0.03 | E163: 0.03001385042 | F163: 0.007185659661 | G163: 0.007185659661 | H163: 0.007190163865 | I163: -3.172469452 | J163: =($B163-$B$7)^6 -> 100.5225789 | K163: =($B163-$B$7)^4 -> 21.61933915 | L163: =($I163-$I$7)^6 -> 0.00130816028 | M163: 1.381760358e-13 | U163: 0.6375
A164: 1964-01-14T10:30:00 | B164: 4.19 | C164: 0 | D164: 0 | E164: 1.385041551e-05 | F164: 0 | G164: 0 | H164: 4.504204136e-06 | I164: =LN(B164/100) -> -3.172469452 | J164: 100.5225789 | K164: 21.61933915 | L164: 0.00130816028 | M164: 8.35042136e-33 | U164: 0.6425
A165: =A164+30.4375 -> 1964-02-13T21:00:00 | B165: 4.17 | C165: =B165-B164 -> -0.02 | D165: =ABS(C165) -> 0.02 | E165: =ABS(C165-C$7) -> 0.01998614958 | F165: -0.004784698123 | G165: =ABS(F165) -> 0.004784698123 | H165: =ABS(F165-F$7) -> 0.004780193919 | I165: -3.17725415 | J165: 106.2480623 | K165: 22.43265508 | L165: 0.001425907295 | M165: =(F165-F$7)^6 -> 1.193089684e-14 | U165: =U164+0.005 -> 0.6475
A166: 1964-03-15T07:30:00 | B166: 4.22 | C166: 0.05 | D166: 0.05 | E166: 0.05001385042 | F166: =LN(B166/B165) -> 0.01191909224 | G166: 0.01191909224 | H166: 0.01192359644 | I166: -3.165335058 | J166: 92.41785399 | K166: 20.44108385 | L166: 0.001147707252 | M166: 2.873714455e-12 | U166: 0.6525
A167: 1964-04-14T18:00:00 | B167: 4.24 | C167: 0.02 | D167: 0.02 | E167: 0.02001385042 | F167: 0.004728141196 | G167: 0.004728141196 | H167: 0.0047326454 | I167: -3.160606917 | J167: 87.32329066 | K167: 19.68279317 | L167: 0.001050688423 | M167: 1.12363121e-14 | U167: 0.6575
A168: 1964-05-15T04:30:00 | B168: 4.2 | C168: -0.04 | D168: 0.04 | E168: 0.03998614958 | F168: -0.009478743955 | G168: 0.009478743955 | H168: 0.00947423975 | I168: -3.170085661 | J168: 97.75773203 | K168: 21.22107653 | L168: 0.001252593454 | M168: 7.232129988e-13 | U168: 0.6625
A169: 1964-06-14T15:00:00 | B169: 4.17 | C169: -0.03 | D169: 0.03 | E169: 0.02998614958 | F169: -0.007168489479 | G169: 0.007168489479 | H169: 0.007163985274 | I169: -3.17725415 | J169: 106.2480623 | K169: 22.43265508 | L169: 0.001425907295 | M169: 1.35184876e-13 | U169: 0.6675
A170: 1964-07-15T01:30:00 | B170: 4.16 | C170: -0.01 | D170: 0.01 | E170: 0.009986149584 | F170: -0.002400961538 | G170: 0.002400961538 | H170: 0.002396457333 | I170: -3.179655112 | J170: 109.2111389 | K170: 22.84781239 | L170: 0.001488240652 | M170: 1.894166743e-16 | U170: 0.6725
A171: 1964-08-14T12:00:00 | B171: 4.18 | C171: 0.02 | D171: 0.02 | E171: 0.02001385042 | F171: 0.004796172263 | G171: 0.004796172263 | H171: 0.004800676468 | I171: -3.174858939 | J171: 103.3522851 | K171: 22.02318137 | L171: 0.001365906419 | M171: 1.224093611e-14 | U171: 0.6775
A172: 1964-09-13T22:30:00 | B172: 4.2 | C172: 0.02 | D172: 0.02 | E172: 0.02001385042 | F172: 0.004773278753 | G172: 0.004773278753 | H172: 0.004777782957 | I172: -3.170085661 | J172: 97.75773203 | K172: 21.22107653 | L172: 0.001252593454 | M172: 1.189483717e-14 | U172: 0.6825
A173: 1964-10-14T09:00:00 | B173: 4.2 | C173: 0 | D173: 0 | E173: 1.385041551e-05 | F173: 0 | G173: 0 | H173: 4.504204136e-06 | I173: -3.170085661 | J173: 97.75773203 | K173: 21.22107653 | L173: 0.001252593454 | M173: 8.35042136e-33 | U173: 0.6875
A174: 1964-11-13T19:30:00 | B174: 4.17 | C174: -0.03 | D174: 0.03 | E174: 0.02998614958 | F174: -0.007168489479 | G174: 0.007168489479 | H174: 0.007163985274 | I174: -3.17725415 | J174: 106.2480623 | K174: 22.43265508 | L174: 0.001425907295 | M174: 1.35184876e-13 | U174: 0.6925
A175: 1964-12-14T06:00:00 | B175: 4.18 | C175: 0.01 | D175: 0.01 | E175: 0.01001385042 | F175: 0.002395210726 | G175: 0.002395210726 | H175: 0.00239971493 | I175: -3.174858939 | J175: 103.3522851 | K175: 22.02318137 | L175: 0.001365906419 | M175: 1.909668222e-16 | U175: 0.6975
A176: 1965-01-13T16:30:00 | B176: 4.19 | C176: 0.01 | D176: 0.01 | E176: 0.01001385042 | F176: 0.002389487397 | G176: 0.002389487397 | H176: 0.002393991602 | I176: -3.172469452 | J176: 100.5225789 | K176: 21.61933915 | L176: 0.00130816028 | M176: 1.882503252e-16 | U176: 0.7025
A177: 1965-02-13T03:00:00 | B177: 4.21 | C177: 0.02 | D177: 0.02 | E177: 0.02001385042 | F177: 0.00476191376 | G177: 0.00476191376 | H177: 0.004766417964 | I177: -3.167707538 | J177: 95.05654981 | K177: 20.8283419 | L177: 0.00119913277 | M177: 1.172607685e-14 | U177: 0.7075
A178: 1965-03-15T13:30:00 | B178: 4.2 | C178: -0.01 | D178: 0.01 | E178: 0.009986149584 | F178: -0.002378122405 | G178: 0.002378122405 | H178: 0.002373618201 | I178: -3.170085661 | J178: 97.75773203 | K178: 21.22107653 | L178: 0.001252593454 | M178: 1.78840214e-16 | U178: 0.7125
A179: 1965-04-15 | B179: 4.2 | C179: 0 | D179: 0 | E179: 1.385041551e-05 | F179: 0 | G179: 0 | H179: 4.504204136e-06 | I179: -3.170085661 | J179: 97.75773203 | K179: 21.22107653 | L179: 0.001252593454 | M179: 8.35042136e-33 | U179: 0.7175
A180: 1965-05-15T10:30:00 | B180: 4.21 | C180: 0.01 | D180: 0.01 | E180: 0.01001385042 | F180: 0.002378122405 | G180: 0.002378122405 | H180: 0.002382626609 | I180: -3.167707538 | J180: 95.05654981 | K180: 20.8283419 | L180: 0.00119913277 | M180: 1.829514795e-16 | U180: 0.7225
A181: 1965-06-14T21:00:00 | B181: 4.21 | C181: 0 | D181: 0 | E181: 1.385041551e-05 | F181: 0 | G181: 0 | H181: 4.504204136e-06 | I181: -3.167707538 | J181: 95.05654981 | K181: 20.8283419 | L181: 0.00119913277 | M181: 8.35042136e-33 | U181: 0.7275
A182: 1965-07-15T07:30:00 | B182: 4.21 | C182: 0 | D182: 0 | E182: 1.385041551e-05 | F182: 0 | G182: 0 | H182: 4.504204136e-06 | I182: -3.167707538 | J182: 95.05654981 | K182: 20.8283419 | L182: 0.00119913277 | M182: 8.35042136e-33 | U182: 0.7325
A183: 1965-08-14T18:00:00 | B183: 4.25 | C183: 0.04 | D183: 0.04 | E183: 0.04001385042 | F183: 0.009456335242 | G183: 0.009456335242 | H183: 0.009460839446 | I183: -3.158251203 | J183: 84.86514826 | K183: 19.31165894 | L183: 0.0010049636 | M183: 7.170972128e-13 | U183: 0.7375
A184: 1965-09-14T04:30:00 | B184: 4.3 | C184: 0.05 | D184: 0.05 | E184: 0.05001385042 | F184: 0.01169603976 | G184: 0.01169603976 | H184: 0.01170054397 | I184: -3.146555163 | J184: 73.42176291 | K184: 17.53408895 | L184: 0.000801730027 | M184: 2.565879857e-12 | U184: 0.7425
A185: 1965-10-14T15:00:00 | B185: 4.32 | C185: 0.02 | D185: 0.02 | E185: 0.02001385042 | F185: 0.004640379557 | G185: 0.004640379557 | H185: 0.004644883761 | I185: -3.141914784 | J185: 69.21999088 | K185: 16.85858132 | L185: 0.000731224991 | M185: 1.004266789e-14 | U185: 0.7475
A186: 1965-11-14T01:30:00 | B186: 4.4 | C186: 0.08 | D186: 0.08 | E186: 0.08001385042 | F186: 0.01834913867 | G186: 0.01834913867 | H186: 0.01835364287 | I186: -3.123565645 | J186: 54.35858459 | K186: 14.34978607 | L186: 0.0005008136996 | M186: 3.822378251e-11 | U186: 0.7525
A187: 1965-12-14T12:00:00 | B187: 4.5 | C187: 0.1 | D187: 0.1 | E187: 0.1000138504 | F187: 0.02247285585 | G187: 0.02247285585 | H187: 0.02247736006 | I187: -3.101092789 | J187: 39.61170843 | K187: 11.62025653 | L187: 0.0003041730657 | M187: 1.289649858e-10 | U187: 0.7575
A188: 1966-01-13T22:30:00 | B188: 4.52 | C188: 0.02 | D188: 0.02 | E188: 0.02001385042 | F188: 0.004434597068 | G188: 0.004434597068 | H188: 0.004439101272 | I188: -3.096658192 | J188: 37.10588372 | K188: 11.12487618 | L188: 0.0002742687238 | M188: 7.651918184e-15 | U188: 0.7625
A189: 1966-02-13T09:00:00 | B189: 4.71 | C189: 0.19 | D189: 0.19 | E189: 0.1900138504 | F189: 0.04117591418 | G189: 0.04117591418 | H189: 0.04118041839 | I189: -3.055482278 | J189: 19.1950309 | K189: 7.169010399 | L189: 9.529494189e-05 | M189: 4.876907609e-09 | U189: 0.7675
A190: 1966-03-15T19:30:00 | B190: 4.72 | C190: 0.01 | D190: 0.01 | E190: 0.01001385042 | F190: 0.002120891569 | G190: 0.002120891569 | H190: 0.002125395773 | I190: -3.053361386 | J190: 18.50185505 | K190: 6.995361828 | L190: 8.975979373e-05 | M190: 9.218046094e-17 | U190: 0.7725
A191: 1966-04-15T06:00:00 | B191: 4.65 | C191: -0.07 | D191: 0.07 | E191: 0.06998614958 | F191: -0.01494158 | G191: 0.01494158 | H191: 0.01493707579 | I191: -3.068302966 | J191: 23.82466531 | K191: 8.279762362 | L191: 0.0001351687249 | M191: 1.110691653e-11 | U191: 0.7775
A192: 1966-05-15T16:30:00 | B192: 4.69 | C192: 0.04 | D192: 0.04 | E192: 0.04001385042 | F192: 0.008565362859 | G192: 0.008565362859 | H192: 0.008569867063 | I192: -3.059737604 | J192: 20.64643669 | K192: 7.525985995 | L192: 0.0001072612586 | M192: 3.961361814e-13 | U192: 0.7825
A193: 1966-06-15T03:00:00 | B193: 4.73 | C193: 0.04 | D193: 0.04 | E193: 0.04001385042 | F193: 0.008492620046 | G193: 0.008492620046 | H193: 0.00849712425 | I193: -3.051244983 | J193: 17.82966609 | K193: 6.824887127 | L193: 8.450606495e-05 | M193: 3.763845715e-13 | U193: 0.7875
A194: 1966-07-15T13:30:00 | B194: 4.84 | C194: 0.11 | D194: 0.11 | E194: 0.1100138504 | F194: 0.02298951822 | G194: 0.02298951822 | H194: 0.02299402243 | I194: -3.028255465 | J194: 11.68102785 | K194: 5.148183751 | L194: 4.207038807e-05 | M194: 1.478051967e-10 | U194: 0.7925
A195: 1966-08-15 | B195: 4.95 | C195: 0.11 | D195: 0.11 | E195: 0.1100138504 | F195: 0.02247285585 | G195: 0.02247285585 | H195: 0.02247736006 | I195: -3.005782609 | J195: 7.411149808 | K195: 3.801226323 | L195: 1.9470837e-05 | M195: 1.289649858e-10 | U195: 0.7975
A196: 1966-09-14T10:30:00 | B196: 4.94 | C196: -0.01 | D196: 0.01 | E196: 0.009986149584 | F196: -0.002022245381 | G196: 0.002022245381 | H196: 0.002017741177 | I196: -3.007804855 | J196: 7.735367135 | K196: 3.911295431 | L196: 2.095633421e-05 | M196: 6.748274517e-17 | U196: 0.8025
A197: 1966-10-14T21:00:00 | B197: 4.83 | C197: -0.11 | D197: 0.11 | E197: 0.1099861496 | F197: -0.02251886354 | G197: 0.02251886354 | H197: 0.02251435933 | I197: -3.030323718 | J197: 12.15410355 | K197: 5.286261237 | L197: 4.494858513e-05 | M197: 1.302439501e-10 | U197: 0.8075
A198: 1966-11-14T07:30:00 | B198: 4.87 | C198: 0.04 | D198: 0.04 | E198: 0.04001385042 | F198: 0.00824746943 | G198: 0.00824746943 | H198: 0.008251973634 | I198: -3.022076249 | J198: 10.3528559 | K198: 4.750144044 | L198: 3.436963426e-05 | M198: 3.157526398e-13 | U198: 0.8125
A199: 1966-12-14T18:00:00 | B199: 4.76 | C199: -0.11 | D199: 0.11 | E199: 0.1099861496 | F199: -0.02284626885 | G199: 0.02284626885 | H199: 0.02284176465 | I199: -3.044922518 | J199: 15.93395303 | K199: 6.332118326 | L199: 7.03122665e-05 | M199: 1.420292895e-10 | U199: 0.8175
A200: 1967-01-14T04:30:00 | B200: 4.51 | C200: -0.25 | D200: 0.25 | E200: 0.2499861496 | F200: -0.05395051473 | G200: 0.05395051473 | H200: 0.05394601052 | I200: -3.098873032 | J200: 38.34173975 | K200: 11.37054313 | L200: 0.0002888820162 | M200: 2.464654211e-08 | U200: 0.8225
A201: 1967-02-13T15:00:00 | B201: 4.61 | C201: 0.1 | D201: 0.1 | E201: 0.1000138504 | F201: 0.02193070349 | G201: 0.02193070349 | H201: 0.0219352077 | I201: -3.076942329 | J201: 27.40054353 | K201: 9.088791036 | L201: 0.000169200578 | M201: 1.113911034e-10 | U201: 0.8275
A202: 1967-03-16T01:30:00 | B202: 4.56 | C202: -0.05 | D202: 0.05 | E202: 0.04998614958 | F202: -0.01090523348 | G202: 0.01090523348 | H202: 0.01090072928 | I202: -3.087847562 | J202: 32.48902507 | K202: 10.18179744 | L202: 0.0002220817511 | M202: 1.677773474e-12 | U202: 0.8325
A203: 1967-04-15T12:00:00 | B203: 4.64 | C203: 0.08 | D203: 0.08 | E203: 0.08001385042 | F203: 0.01739174271 | G203: 0.01739174271 | H203: 0.01739624692 | I203: -3.07045582 | J203: 24.67988417 | K203: 8.476737698 | L203: 0.0001430613551 | M203: 2.771618041e-11 | U203: 0.8375
... 555 more rows
